Workbook

Sheet Einstellung
B3: Adressfelder bitte bearbeiten. Diese sind zur Dokumentation von Futtermischungen nötig. | F3: Futterberechnung zur Fütterung in der Rindermast
F4: Gruber Tabelle, 28. Auflage / Januar 2024 www.LfL.bayern.de
B5: Tierhaltungsschule | D5: Triesdorf
B6: Markgrafenstraße 12
B7: 91746 | C7: Weidenbach
B8: 09 111 111 1111
B11: Freie Software - Keinerlei Gewährleistung !
B12: 10. Mai 2024
B13: Tierhaltungsschule Triesdorf
B15: ths@triesdorf.de
B17: www.triesdorf.de

Sheet Sollwerte
B2: Richtwerte zur Futteraufnahme (TM-Tag) , Empfehlungen zur Energieversorgung (MJ ME) und Rohproteinversorgung (XP) pro Tag
B4: Tiere zur Mast | C4: Kenn - Nr. | D4: TM g | E4: aNDF % | F4: XP g | G4: XP/kg TM | H4: ME/MJ | I4: ME/kgTM | J4: Ca g | K4: P g | L4: Mg g | M4: Na g | N4: K g | O4: LM | P4: Faktor
B5: Bitte Sollwerte auswählen !!! | C5: 0 | D5: 0 | F5: 0 | H5: 0 | J5: 0 | K5: 0 | L5: 0 | M5: 0 | N5: 0 | P5: zur Ber. von pabKH und NDF
B6: Fresserfütterung LM 100 - mittl. ZN 1000 g | C6: 1 | D6: 1700 | E6: 25 | F6: 264 | G6: 152 | H6: 20.4 | I6: 11.77 | J6: 16.6 | K6: 7.7 | L6: 3 | M6: 2.5 | N6: 17.5 | O6: 100 | P6: =IF(O6>0,700^0.62/O6^0.62,0) -> 3.341648648
B7: Fresserfütterung LM 100 - mittl. ZN 1150 g | C7: 2 | D7: 1800 | E7: 25 | F7: 296 | G7: 162 | H7: 22.5 | I7: 12.3 | J7: 18.5 | K7: 8.6 | L7: 3.3 | M7: 2.8 | N7: 18.5 | O7: 100 | P7: =IF(O7>0,700^0.62/O7^0.62,0) -> 3.341648648
B8: Fresserfütterung LM 100 - mittl. ZN 1300 g | C8: 3 | D8: 1900 | E8: 25 | F8: 330 | G8: 171 | H8: 24.7 | I8: 12.78 | J8: 20.4 | K8: 9.5 | L8: 3.6 | M8: 3 | N8: 19.5 | O8: 100 | P8: 3.341648648
B9: Fresserfütterung LM 140 - mittl. ZN 1000 g | C9: 4 | D9: 3300 | E9: 25 | F9: 478 | G9: 145 | H9: 37.8 | I9: 11.47 | J9: 31.9 | K9: 13.3 | L9: 5.4 | M9: 4.5 | N9: 31.5 | O9: 140 | P9: 2.712447885
B10: Fresserfütterung LM 140 - mittl. ZN 1150 g | C10: 5 | D10: 3500 | E10: 25 | F10: 540 | G10: 154 | H10: 42 | I10: 11.97 | J10: 35.1 | K10: 14.6 | L10: 5.8 | M10: 4.9 | N10: 33.4 | O10: 140 | P10: 2.712447885
B11: Fresserfütterung LM 140 - mittl. ZN 1300 g | C11: 6 | D11: 3700 | E11: 25 | F11: 606 | G11: 162 | H11: 46.4 | I11: 12.43 | J11: 38.3 | K11: 16 | L11: 6.2 | M11: 5.2 | N11: 35.3 | O11: 140 | P11: 2.712447885
B12: Fresserfütterung LM 200 - mittl. ZN 1000 g | C12: 7 | D12: 4500 | E12: 25 | F12: 603 | G12: 134 | H12: 49.8 | I12: 11.06 | J12: 43.8 | K12: 17 | L12: 7.4 | M12: 6.3 | N12: 46.8 | O12: 200 | P12: 2.174313626
B13: Fresserfütterung LM 200 - mittl. ZN 1150 g | C13: 8 | D13: 4900 | E13: 25 | F13: 713 | G13: 146 | H13: 57.6 | I13: 11.76 | J13: 49.4 | K13: 19.1 | L13: 8.1 | M13: 6.9 | N13: 50.6 | O13: 200 | P13: 2.174313626
B14: Fresserfütterung LM 200 - mittl. ZN 1300 g | C14: 9 | D14: 5300 | E14: 25 | F14: 830 | G14: 156 | H14: 65.7 | I14: 12.34 | J14: 55 | K14: 21.1 | L14: 8.9 | M14: 7.5 | N14: 54.5 | O14: 200 | P14: 2.174313626
B15: 10 | C15: 10 | P15: 0
B16: Mastbullen LM 200 - mittlere ZN 1250 g | C16: 11 | D16: 4900 | E16: 25 | F16: 666 | G16: 137 | H16: 55.4 | I16: 11.4 | J16: 41 | K16: 18.9 | L16: 6.9 | M16: 5.9 | N16: 43.8 | O16: 200 | P16: 2.174313626
B17: Mastbullen LM 200 - mittlere ZN 1350 g | C17: 12 | D17: 5000 | E17: 25 | F17: 702 | G17: 141 | H17: 57.7 | I17: 11.6 | J17: 43.4 | K17: 20 | L17: 7.3 | M17: 6.1 | N17: 45.4 | O17: 200 | P17: 2.174313626
B18: Mastbullen LM 200 - mittlere ZN 1450 g | C18: 13 | D18: 5100 | E18: 25 | F18: 738 | G18: 144 | H18: 60 | I18: 11.73 | J18: 45.9 | K18: 21.1 | L18: 7.6 | M18: 6.4 | N18: 47.1 | O18: 200 | P18: 2.174313626
B19: Mastbullen LM 300 - mittlere ZN 1250 g | C19: 14 | D19: 6600 | E19: 25 | F19: 861 | G19: 131 | H19: 75.1 | I19: 11.4 | J19: 47.4 | K19: 22.6 | L19: 8.9 | M19: 7.6 | N19: 60 | O19: 300 | P19: 1.691007785
B20: Mastbullen LM 300 - mittlere ZN 1350 g | C20: 15 | D20: 6700 | E20: 25 | F20: 900 | G20: 133 | H20: 77.8 | I20: 11.53 | J20: 49.9 | K20: 23.7 | L20: 9.3 | M20: 7.9 | N20: 61.8 | O20: 300 | P20: 1.691007785
B21: Mastbullen LM 300 - mittlere ZN 1450 g | C21: 16 | D21: 6900 | E21: 25 | F21: 938 | G21: 136 | H21: 80.5 | I21: 11.65 | J21: 52.4 | K21: 24.9 | L21: 9.6 | M21: 8.2 | N21: 63.7 | O21: 300 | P21: 1.691007785
B22: Mastbullen LM 400 - mittlere ZN 1250 g | C22: 17 | D22: 8000 | E22: 25 | F22: 1009 | G22: 126 | H22: 91.1 | I22: 11.36 | J22: 50.4 | K22: 24.7 | L22: 10.4 | M22: 8.9 | N22: 72.9 | O22: 400 | P22: 1.414762664
B23: Mastbullen LM 400 - mittlere ZN 1350 g | C23: 18 | D23: 8200 | E23: 25 | F23: 1050 | G23: 128 | H23: 94.2 | I23: 11.48 | J23: 52.9 | K23: 25.8 | L23: 10.8 | M23: 9.2 | N23: 74.8 | O23: 400 | P23: 1.414762664
B24: Mastbullen LM 400 - mittlere ZN 1450 g | C24: 19 | D24: 8400 | E24: 25 | F24: 1091 | G24: 130 | H24: 97.3 | I24: 11.59 | J24: 55.4 | K24: 27 | L24: 11.1 | M24: 9.5 | N24: 76.8 | O24: 400 | P24: 1.414762664
B25: Mastbullen LM 500 - mittlere ZN 1250 g | C25: 20 | D25: 9100 | E25: 25 | F25: 1119 | G25: 122 | H25: 103.5 | I25: 11.31 | J25: 50.9 | K25: 25.6 | L25: 11.4 | M25: 9.8 | N25: 82.8 | O25: 500 | P25: 1.231967872
B26: Mastbullen LM 500 - mittlere ZN 1350 g | C26: 21 | D26: 9400 | E26: 25 | F26: 1161 | G26: 124 | H26: 106.9 | I26: 11.42 | J26: 53.4 | K26: 26.7 | L26: 11.8 | M26: 10.1 | N26: 84.8 | O26: 500 | P26: 1.231967872
B27: Mastbullen LM 500 - mittlere ZN 1450 g | C27: 22 | D27: 9600 | E27: 25 | F27: 1204 | G27: 126 | H27: 110.4 | I27: 11.53 | J27: 55.9 | K27: 27.9 | L27: 12.1 | M27: 10.4 | N27: 86.8 | O27: 500 | P27: 1.231967872
B28: Mastbullen LM 600 - mittlere ZN 1250 g | C28: 23 | D28: 10000 | E28: 25 | F28: 1204 | G28: 120 | H28: 112.7 | I28: 11.23 | J28: 50 | K28: 25.8 | L28: 12.1 | M28: 10.4 | N28: 90.3 | O28: 600 | P28: 1.100289604
B29: Mastbullen LM 600 - mittlere ZN 1350 g | C29: 24 | D29: 10300 | E29: 25 | F29: 1248 | G29: 122 | H29: 116.6 | I29: 11.36 | J29: 52.4 | K29: 26.9 | L29: 12.4 | M29: 10.7 | N29: 92.3 | O29: 600 | P29: 1.100289604
B30: Mastbullen LM 600 - mittlere ZN 1450 g | C30: 25 | D30: 10500 | E30: 25 | F30: 1292 | G30: 123 | H30: 120.5 | I30: 11.47 | J30: 54.9 | K30: 28.1 | L30: 12.8 | M30: 11 | N30: 94.4 | O30: 600 | P30: 1.100289604
B31: Mastbullen LM 700 - mittlere ZN 1250 g | C31: 26 | D31: 10800 | E31: 25 | F31: 1281 | G31: 119 | H31: 120.1 | I31: 11.17 | J31: 48.8 | K31: 25.7 | L31: 12.5 | M31: 10.8 | N31: 96.2 | O31: 700 | P31: 1
B32: Mastbullen LM 700 - mittlere ZN 1350 g | C32: 27 | D32: 11000 | E32: 25 | F32: 1326 | G32: 120 | H32: 124.4 | I32: 11.3 | J32: 51.1 | K32: 26.8 | L32: 12.9 | M32: 11.1 | N32: 98.3 | O32: 700 | P32: 1
B33: Mastbullen LM 700 - mittlere ZN 1450 g | C33: 28 | D33: 11300 | E33: 25 | F33: 1372 | G33: 122 | H33: 128.6 | I33: 11.41 | J33: 53.5 | K33: 27.9 | L33: 13.3 | M33: 11.4 | N33: 100.5 | O33: 700 | P33: 1
B34: Mastbullen LM 800 - mittlere ZN 1250 g | C34: 29 | D34: 11400 | E34: 25 | F34: 1368 | G34: 119 | H34: 127.5 | I34: 11.14 | J34: 48 | K34: 25.8 | L34: 13 | M34: 11.2 | N34: 101.5 | O34: 800 | P34: 0.9205449352
B35: Mastbullen LM 800 - mittlere ZN 1350 g | C35: 30 | D35: 11700 | E35: 25 | F35: 1415 | G35: 121 | H35: 132.2 | I35: 11.27 | J35: 50.4 | K35: 26.9 | L35: 13.4 | M35: 11.5 | N35: 103.6 | O35: 800 | P35: 0.9205449352
B36: Mastbullen LM 800 - mittlere ZN 1450 g | C36: 31 | D36: 12000 | E36: 25 | F36: 1462 | G36: 122 | H36: 136.8 | I36: 11.39 | J36: 52.7 | K36: 28 | L36: 13.8 | M36: 11.9 | N36: 105.8 | O36: 800 | P36: 0.9205449352
B37: 32 | C37: 32 | P37: 0
B38: Ochsenmast LM 250 - mittlere ZN 800 g | C38: 33 | D38: 5000 | E38: 25 | F38: 629 | G38: 126 | H38: 55.5 | I38: 11.1 | J38: 33.1 | K38: 15.8 | L38: 6.5 | M38: 4.7 | N38: 45.8 | O38: 250 | P38: 1.893380846
B39: Ochsenmast LM 250 - mittlere ZN 1000 g | C39: 34 | D39: 5400 | E39: 25 | F39: 697 | G39: 129 | H39: 61.1 | I39: 11.33 | J39: 39.6 | K39: 18.5 | L39: 7.3 | M39: 5.2 | N39: 49.7 | O39: 250 | P39: 1.893380846
B40: Ochsenmast LM 250 - mittlere ZN 1200 g | C40: 35 | D40: 5800 | E40: 25 | F40: 766 | G40: 133 | H40: 66.7 | I40: 11.56 | J40: 46.1 | K40: 21.2 | L40: 8.1 | M40: 5.8 | N40: 53.4 | O40: 250 | P40: 1.893380846
B41: Ochsenmast LM 350 - mittlere ZN 800 g | C41: 36 | D41: 6600 | E41: 25 | F41: 812 | G41: 124 | H41: 71 | I41: 10.84 | J41: 37.5 | K41: 18.5 | L41: 8.2 | M41: 5.9 | N41: 59.6 | O41: 350 | P41: 1.536875181
B42: Ochsenmast LM 350 - mittlere ZN 1000 g | C42: 37 | D42: 7000 | E42: 25 | F42: 888 | G42: 127 | H42: 77.5 | I42: 11.04 | J42: 44.2 | K42: 21.3 | L42: 9 | M42: 6.5 | N42: 64.2 | O42: 350 | P42: 1.536875181
B43: Ochsenmast LM 350 - mittlere ZN 1200 g | C43: 38 | D43: 7500 | E43: 25 | F43: 964 | G43: 129 | H43: 84.1 | I43: 11.26 | J43: 50.8 | K43: 24.1 | L43: 9.9 | M43: 7.1 | N43: 68.5 | O43: 350 | P43: 1.536875181
B44: Ochsenmast LM 450 - mittlere ZN 800 g | C44: 39 | D44: 7800 | E44: 25 | F44: 958 | G44: 123 | H44: 83.3 | I44: 10.67 | J44: 39.3 | K44: 20 | L44: 9.4 | M44: 6.8 | N44: 70.7 | O44: 450 | P44: 1.315131034
B45: Ochsenmast LM 450 - mittlere ZN 1000 g | C45: 40 | D45: 8400 | E45: 25 | F45: 1042 | G45: 125 | H45: 90.8 | I45: 10.87 | J45: 46.2 | K45: 23 | L45: 10.3 | M45: 7.5 | N45: 75.9 | O45: 450 | P45: 1.315131034
B46: Ochsenmast LM 450 - mittlere ZN 1200 g | C46: 41 | D46: 8900 | E46: 25 | F46: 1127 | G46: 127 | H46: 98.3 | I46: 11.07 | J46: 52.9 | K46: 25.9 | L46: 11.2 | M46: 8.1 | N46: 81 | O46: 450 | P46: 1.315131034
B47: Ochsenmast LM 550 - mittlere ZN 800 g | C47: 42 | D47: 8700 | E47: 25 | F47: 1060 | G47: 122 | H47: 91.5 | I47: 10.55 | J47: 38.2 | K47: 20.2 | L47: 10.1 | M47: 7.3 | N47: 78.2 | O47: 550 | P47: 1.161277248
B48: Ochsenmast LM 550 - mittlere ZN 1000 g | C48: 43 | D48: 9300 | E48: 25 | F48: 1152 | G48: 124 | H48: 99.9 | I48: 10.73 | J48: 45.2 | K48: 23.3 | L48: 11.1 | M48: 8 | N48: 84.2 | O48: 550 | P48: 1.161277248
B49: Ochsenmast LM 550 - mittlere ZN 1200 g | C49: 44 | D49: 9900 | E49: 25 | F49: 1244 | G49: 125 | H49: 108.4 | I49: 10.92 | J49: 52.2 | K49: 26.3 | L49: 12.1 | M49: 8.7 | N49: 90 | O49: 550 | P49: 1.161277248
B50: Ochsenmast LM 650 - mittlere ZN 800 g | C50: 45 | D50: 9100 | E50: 25 | F50: 1109 | G50: 122 | H50: 94.4 | I50: 10.41 | J50: 34.1 | K50: 18.9 | L50: 10.1 | M50: 7.4 | N50: 81.3 | O50: 650 | P50: 1.047018858
B51: Ochsenmast LM 650 - mittlere ZN 1000 g | C51: 46 | D51: 9800 | E51: 25 | F51: 1209 | G51: 123 | H51: 103.8 | I51: 10.6 | J51: 41.3 | K51: 22.1 | L51: 11.2 | M51: 8.2 | N51: 88.1 | O51: 650 | P51: 1.047018858
B52: Ochsenmast LM 650 - mittlere ZN 1200 g | C52: 47 | D52: 10500 | E52: 25 | F52: 1308 | G52: 125 | H52: 113.2 | I52: 10.78 | J52: 48.4 | K52: 25.3 | L52: 12.3 | M52: 9 | N52: 94.8 | O52: 650 | P52: 1.047018858
B53: 48 | C53: 48 | P53: 0
B54: Färsenmast LM 200 - mittlere ZN 800 g | C54: 49 | D54: 4400 | E54: 25 | F54: 559 | G54: 127 | H54: 49.2 | I54: 11.14 | J54: 31.7 | K54: 14.9 | L54: 5.9 | M54: 4.3 | N54: 40.9 | O54: 200 | P54: 2.174313626
B55: Färsenmast LM 200 - mittlere ZN 950 g | C55: 50 | D55: 4700 | E55: 25 | F55: 609 | G55: 129 | H55: 53.4 | I55: 11.3 | J55: 36.6 | K55: 16.9 | L55: 6.5 | M55: 4.7 | N55: 44 | O55: 200 | P55: 2.174313626
B56: Färsenmast LM 200 - mittlere ZN 1100 g | C56: 51 | D56: 5000 | E56: 25 | F56: 658 | G56: 131 | H56: 57.6 | I56: 11.47 | J56: 41.5 | K56: 19 | L56: 7.1 | M56: 5.1 | N56: 46.9 | O56: 200 | P56: 2.174313626
B57: Färsenmast LM 300 - mittlere ZN 800 g | C57: 52 | D57: 6200 | E57: 25 | F57: 767 | G57: 124 | H57: 67 | I57: 10.83 | J57: 37.1 | K57: 18.1 | L57: 7.8 | M57: 5.7 | N57: 56.8 | O57: 300 | P57: 1.691007785
B58: Färsenmast LM 300 - mittlere ZN 950 g | C58: 53 | D58: 6600 | E58: 25 | F58: 826 | G58: 126 | H58: 72 | I58: 10.97 | J58: 42.2 | K58: 20.3 | L58: 8.5 | M58: 6.1 | N58: 60.4 | O58: 300 | P58: 1.691007785
B59: Färsenmast LM 300 - mittlere ZN 1100 g | C59: 54 | D59: 6900 | E59: 25 | F59: 885 | G59: 128 | H59: 77 | I59: 11.12 | J59: 47.2 | K59: 22.4 | L59: 9.1 | M59: 6.6 | N59: 63.8 | O59: 300 | P59: 1.691007785
B60: Färsenmast LM 400 - mittlere ZN 800 g | C60: 55 | D60: 7600 | E60: 25 | F60: 927 | G60: 122 | H60: 80.6 | I60: 10.57 | J60: 39.3 | K60: 19.9 | L60: 9.2 | M60: 6.7 | N60: 69.4 | O60: 400 | P60: 1.414762664
B61: Färsenmast LM 400 - mittlere ZN 950 g | C61: 56 | D61: 8100 | E61: 25 | F61: 994 | G61: 123 | H61: 86.5 | I61: 10.73 | J61: 44.5 | K61: 22.1 | L61: 9.9 | M61: 7.2 | N61: 73.6 | O61: 400 | P61: 1.414762664
B62: Färsenmast LM 400 - mittlere ZN 1100 g | C62: 57 | D62: 8500 | E62: 25 | F62: 1062 | G62: 125 | H62: 92.3 | I62: 10.87 | J62: 49.6 | K62: 24.4 | L62: 10.7 | M62: 7.7 | N62: 77.7 | O62: 400 | P62: 1.414762664
B63: Färsenmast LM 500 - mittlere ZN 800 g | C63: 58 | D63: 8600 | E63: 25 | F63: 1021 | G63: 119 | H63: 88.7 | I63: 10.33 | J63: 38 | K63: 20.1 | L63: 10 | M63: 7.2 | N63: 77.7 | O63: 500 | P63: 1.231967872
B64: Färsenmast LM 500 - mittlere ZN 950 g | C64: 59 | D64: 9100 | E64: 25 | F64: 1097 | G64: 120 | H64: 95.4 | I64: 10.47 | J64: 43.3 | K64: 22.4 | L64: 10.8 | M64: 7.8 | N64: 82.6 | O64: 500 | P64: 1.231967872
B65: Färsenmast LM 500 - mittlere ZN 1100 g | C65: 60 | D65: 9600 | E65: 25 | F65: 1174 | G65: 122 | H65: 102 | I65: 10.61 | J65: 48.6 | K65: 24.7 | L65: 11.6 | M65: 8.4 | N65: 87.4 | O65: 500 | P65: 1.231967872
B66: Färsenmast LM 600 - mittlere ZN 800 g | C66: 61 | D66: 9000 | E66: 25 | F66: 1035 | G66: 116 | H66: 89.8 | I66: 10.03 | J66: 32.9 | K66: 18.4 | L66: 9.9 | M66: 7.3 | N66: 80.6 | O66: 600 | P66: 1.100289604
B67: Färsenmast LM 600 - mittlere ZN 950 g | C67: 62 | D67: 9600 | E67: 25 | F67: 1120 | G67: 117 | H67: 97.3 | I67: 10.18 | J67: 38.4 | K67: 20.9 | L67: 10.8 | M67: 7.9 | N67: 86.2 | O67: 600 | P67: 1.100289604
B68: Färsenmast LM 600 - mittlere ZN 1100 g | C68: 63 | D68: 10200 | E68: 25 | F68: 1205 | G68: 119 | H68: 104.8 | I68: 10.32 | J68: 43.9 | K68: 23.3 | L68: 11.7 | M68: 8.5 | N68: 91.7 | O68: 600 | P68: 1.100289604
B69: 64 | C69: 64 | P69: 0
B70: 65 | C70: 65 | P70: 0
B71: Aufzuchtrinder LM 200 - mittlere ZN 700 g | C71: 66 | D71: 4600 | E71: 25 | F71: 561 | G71: 121 | H71: 46.5 | I71: 10.01 | J71: 33.1 | K71: 15.4 | L71: 6.1 | M71: 4.4 | N71: 41.6 | O71: 200 | P71: 2.174313626
B72: Aufzuchtrinder LM 200 - mittlere ZN 850 g | C72: 67 | D72: 4900 | E72: 25 | F72: 605 | G72: 123 | H72: 49.9 | I72: 10.12 | J72: 37.9 | K72: 17.4 | L72: 6.7 | M72: 4.8 | N72: 44.4 | O72: 200 | P72: 2.174313626
B73: Aufzuchtrinder LM 400 - mittlere ZN 700 g | C73: 68 | D73: 7200 | E73: 25 | F73: 846 | G73: 117 | H73: 66.5 | I73: 9.23 | J73: 33 | K73: 17.2 | L73: 8.4 | M73: 6 | N73: 64.3 | O73: 400 | P73: 1.414762664
B74: Aufzuchtrinder LM 400 - mittlere ZN 850 g | C74: 69 | D74: 7400 | E74: 25 | F74: 889 | G74: 120 | H74: 70.6 | I74: 9.49 | J74: 38 | K74: 19.2 | L74: 9 | M74: 6.5 | N74: 67.6 | O74: 400 | P74: =IF(O74>0,700^0.62/O74^0.62,0) -> 1.414762664
B75: Aufzuchtrinder LM 600 - mittlere ZN 700 g | C75: 70 | D75: 8700 | E75: 25 | F75: 1035 | G75: 119 | H75: 84.2 | I75: 9.72 | J75: 36.2 | K75: 19.4 | L75: 10 | M75: 7.2 | N75: 78.1 | O75: 600 | P75: 1.100289604
B76: Aufzuchtrinder LM 600 - mittlere ZN 850 g | C76: 71 | D76: 8900 | E76: 25 | F76: 1081 | G76: 122 | H76: 89 | I76: 10.02 | J76: 41.2 | K76: 21.6 | L76: 10.6 | M76: 7.7 | N76: 81.9 | O76: 600 | P76: 1.100289604
B77: 72 | C77: 72 | P77: 0
B78: 73 | C78: 73 | P78: 0
B79: 74 | C79: 74 | P79: 0
B80: 75 | C80: 75 | P80: 0

Sheet Ration
A2: Bitte Sollwerte auswählen !!!
A3: Nr | B3: Futterart | C3: TM % | D3: TM g | E3: FM kg Ration | G3: aNDF om g | H3: Rohprotein g | I3: ME MJ | J3: XS+XZ | K3: bXS | L3: Ca | M3: P | N3: Mg | O3: Na | P3: K | Q3: Preis / dt FM | R3: Typ
B4: =IFERROR(VLOOKUP(A4,'Gruber Tabelle'!$A$6:$U$336,2,0),0) -> 0 | C4: =IFERROR(VLOOKUP(A4,'Gruber Tabelle'!$A$6:$U$336,3,0)/1000,0) -> 0 | D4: =IFERROR(VLOOKUP(A4,'Gruber Tabelle'!$A$6:$U$336,3,0),0) -> 0 | E4: =IFERROR(F15/C15,0) -> 0 | F4: in 1000 g Trockenmasse | G4: =IFERROR(VLOOKUP(A4,'Gruber Tabelle'!$A$6:$U$336,5,0),0) -> 0 | H4: =IFERROR(VLOOKUP(A4,'Gruber Tabelle'!$A$6:$U$336,7,0),0) -> 0 | I4: =IFERROR(VLOOKUP(A4,'Gruber Tabelle'!$A$6:$U$336,12,0),0) -> 0 | J4: =IFERROR(VLOOKUP(A4,'Gruber Tabelle'!$A$6:$U$336,13,0),0) -> 0 | K4: =IFERROR(VLOOKUP(A4,'Gruber Tabelle'!$A$6:$U$336,14,0),0) -> 0 | L4: =IFERROR(VLOOKUP(A4,'Gruber Tabelle'!$A$6:$U$336,16,0),0) -> 0 | M4: =IFERROR(VLOOKUP(A4,'Gruber Tabelle'!$A$6:$U$336,17,0),0) -> 0 | N4: =IFERROR(VLOOKUP(A4,'Gruber Tabelle'!$A$6:$U$336,18,0),0) -> 0 | O4: =IFERROR(VLOOKUP(A4,'Gruber Tabelle'!$A$6:$U$336,19,0),0) -> 0 | P4: =IFERROR(VLOOKUP(A4,'Gruber Tabelle'!$A$6:$U$336,20,0),0) -> 0 | Q4: =IFERROR(VLOOKUP(A4,'Gruber Tabelle'!$A$6:$U$336,21,0),0) -> 0 | R4: =IFERROR(VLOOKUP(A4,'Gruber Tabelle'!$A$6:$V$336,22,0),0) -> 0
B5: =IFERROR(VLOOKUP(A5,'Gruber Tabelle'!$A$6:$U$336,2,0),0) -> 0 | C5: =IFERROR(VLOOKUP(A5,'Gruber Tabelle'!$A$6:$U$336,3,0)/1000,0) -> 0 | D5: =IFERROR(VLOOKUP(A5,'Gruber Tabelle'!$A$6:$U$336,3,0),0) -> 0 | E5: 0 | G5: =IFERROR(VLOOKUP(A5,'Gruber Tabelle'!$A$6:$U$336,5,0),0) -> 0 | H5: =IFERROR(VLOOKUP(A5,'Gruber Tabelle'!$A$6:$U$336,7,0),0) -> 0 | I5: =IFERROR(VLOOKUP(A5,'Gruber Tabelle'!$A$6:$U$336,12,0),0) -> 0 | J5: =IFERROR(VLOOKUP(A5,'Gruber Tabelle'!$A$6:$U$336,13,0),0) -> 0 | K5: =IFERROR(VLOOKUP(A5,'Gruber Tabelle'!$A$6:$U$336,14,0),0) -> 0 | L5: =IFERROR(VLOOKUP(A5,'Gruber Tabelle'!$A$6:$U$336,16,0),0) -> 0 | M5: =IFERROR(VLOOKUP(A5,'Gruber Tabelle'!$A$6:$U$336,17,0),0) -> 0 | N5: =IFERROR(VLOOKUP(A5,'Gruber Tabelle'!$A$6:$U$336,18,0),0) -> 0 | O5: =IFERROR(VLOOKUP(A5,'Gruber Tabelle'!$A$6:$U$336,19,0),0) -> 0 | P5: =IFERROR(VLOOKUP(A5,'Gruber Tabelle'!$A$6:$U$336,20,0),0) -> 0 | Q5: =IFERROR(VLOOKUP(A5,'Gruber Tabelle'!$A$6:$U$336,21,0),0) -> 0 | R5: =IFERROR(VLOOKUP(A5,'Gruber Tabelle'!$A$6:$V$336,22,0),0) -> 0
B6: =IFERROR(VLOOKUP(A6,'Gruber Tabelle'!$A$6:$U$336,2,0),0) -> 0 | C6: =IFERROR(VLOOKUP(A6,'Gruber Tabelle'!$A$6:$U$336,3,0)/1000,0) -> 0 | D6: =IFERROR(VLOOKUP(A6,'Gruber Tabelle'!$A$6:$U$336,3,0),0) -> 0 | E6: 0 | G6: =IFERROR(VLOOKUP(A6,'Gruber Tabelle'!$A$6:$U$336,5,0),0) -> 0 | H6: =IFERROR(VLOOKUP(A6,'Gruber Tabelle'!$A$6:$U$336,7,0),0) -> 0 | I6: =IFERROR(VLOOKUP(A6,'Gruber Tabelle'!$A$6:$U$336,12,0),0) -> 0 | J6: =IFERROR(VLOOKUP(A6,'Gruber Tabelle'!$A$6:$U$336,13,0),0) -> 0 | K6: =IFERROR(VLOOKUP(A6,'Gruber Tabelle'!$A$6:$U$336,14,0),0) -> 0 | L6: =IFERROR(VLOOKUP(A6,'Gruber Tabelle'!$A$6:$U$336,16,0),0) -> 0 | M6: =IFERROR(VLOOKUP(A6,'Gruber Tabelle'!$A$6:$U$336,17,0),0) -> 0 | N6: =IFERROR(VLOOKUP(A6,'Gruber Tabelle'!$A$6:$U$336,18,0),0) -> 0 | O6: =IFERROR(VLOOKUP(A6,'Gruber Tabelle'!$A$6:$U$336,19,0),0) -> 0 | P6: =IFERROR(VLOOKUP(A6,'Gruber Tabelle'!$A$6:$U$336,20,0),0) -> 0 | Q6: =IFERROR(VLOOKUP(A6,'Gruber Tabelle'!$A$6:$U$336,21,0),0) -> 0 | R6: =IFERROR(VLOOKUP(A6,'Gruber Tabelle'!$A$6:$V$336,22,0),0) -> 0
B7: =IFERROR(VLOOKUP(A7,'Gruber Tabelle'!$A$6:$U$336,2,0),0) -> 0 | C7: =IFERROR(VLOOKUP(A7,'Gruber Tabelle'!$A$6:$U$336,3,0)/1000,0) -> 0 | D7: =IFERROR(VLOOKUP(A7,'Gruber Tabelle'!$A$6:$U$336,3,0),0) -> 0 | E7: 0 | G7: =IFERROR(VLOOKUP(A7,'Gruber Tabelle'!$A$6:$U$336,5,0),0) -> 0 | H7: =IFERROR(VLOOKUP(A7,'Gruber Tabelle'!$A$6:$U$336,7,0),0) -> 0 | I7: =IFERROR(VLOOKUP(A7,'Gruber Tabelle'!$A$6:$U$336,12,0),0) -> 0 | J7: =IFERROR(VLOOKUP(A7,'Gruber Tabelle'!$A$6:$U$336,13,0),0) -> 0 | K7: =IFERROR(VLOOKUP(A7,'Gruber Tabelle'!$A$6:$U$336,14,0),0) -> 0 | L7: =IFERROR(VLOOKUP(A7,'Gruber Tabelle'!$A$6:$U$336,16,0),0) -> 0 | M7: =IFERROR(VLOOKUP(A7,'Gruber Tabelle'!$A$6:$U$336,17,0),0) -> 0 | N7: =IFERROR(VLOOKUP(A7,'Gruber Tabelle'!$A$6:$U$336,18,0),0) -> 0 | O7: =IFERROR(VLOOKUP(A7,'Gruber Tabelle'!$A$6:$U$336,19,0),0) -> 0 | P7: =IFERROR(VLOOKUP(A7,'Gruber Tabelle'!$A$6:$U$336,20,0),0) -> 0 | Q7: =IFERROR(VLOOKUP(A7,'Gruber Tabelle'!$A$6:$U$336,21,0),0) -> 0 | R7: =IFERROR(VLOOKUP(A7,'Gruber Tabelle'!$A$6:$V$336,22,0),0) -> 0
B8: =IFERROR(VLOOKUP(A8,'Gruber Tabelle'!$A$6:$U$336,2,0),0) -> 0 | C8: =IFERROR(VLOOKUP(A8,'Gruber Tabelle'!$A$6:$U$336,3,0)/1000,0) -> 0 | D8: =IFERROR(VLOOKUP(A8,'Gruber Tabelle'!$A$6:$U$336,3,0),0) -> 0 | E8: 0 | G8: =IFERROR(VLOOKUP(A8,'Gruber Tabelle'!$A$6:$U$336,5,0),0) -> 0 | H8: =IFERROR(VLOOKUP(A8,'Gruber Tabelle'!$A$6:$U$336,7,0),0) -> 0 | I8: =IFERROR(VLOOKUP(A8,'Gruber Tabelle'!$A$6:$U$336,12,0),0) -> 0 | J8: =IFERROR(VLOOKUP(A8,'Gruber Tabelle'!$A$6:$U$336,13,0),0) -> 0 | K8: =IFERROR(VLOOKUP(A8,'Gruber Tabelle'!$A$6:$U$336,14,0),0) -> 0 | L8: =IFERROR(VLOOKUP(A8,'Gruber Tabelle'!$A$6:$U$336,16,0),0) -> 0 | M8: =IFERROR(VLOOKUP(A8,'Gruber Tabelle'!$A$6:$U$336,17,0),0) -> 0 | N8: =IFERROR(VLOOKUP(A8,'Gruber Tabelle'!$A$6:$U$336,18,0),0) -> 0 | O8: =IFERROR(VLOOKUP(A8,'Gruber Tabelle'!$A$6:$U$336,19,0),0) -> 0 | P8: =IFERROR(VLOOKUP(A8,'Gruber Tabelle'!$A$6:$U$336,20,0),0) -> 0 | Q8: =IFERROR(VLOOKUP(A8,'Gruber Tabelle'!$A$6:$U$336,21,0),0) -> 0 | R8: =IFERROR(VLOOKUP(A8,'Gruber Tabelle'!$A$6:$V$336,22,0),0) -> 0
B9: =IFERROR(VLOOKUP(A9,'Gruber Tabelle'!$A$6:$U$336,2,0),0) -> 0 | C9: =IFERROR(VLOOKUP(A9,'Gruber Tabelle'!$A$6:$U$336,3,0)/1000,0) -> 0 | D9: =IFERROR(VLOOKUP(A9,'Gruber Tabelle'!$A$6:$U$336,3,0),0) -> 0 | E9: 0 | G9: =IFERROR(VLOOKUP(A9,'Gruber Tabelle'!$A$6:$U$336,5,0),0) -> 0 | H9: =IFERROR(VLOOKUP(A9,'Gruber Tabelle'!$A$6:$U$336,7,0),0) -> 0 | I9: =IFERROR(VLOOKUP(A9,'Gruber Tabelle'!$A$6:$U$336,12,0),0) -> 0 | J9: =IFERROR(VLOOKUP(A9,'Gruber Tabelle'!$A$6:$U$336,13,0),0) -> 0 | K9: =IFERROR(VLOOKUP(A9,'Gruber Tabelle'!$A$6:$U$336,14,0),0) -> 0 | L9: =IFERROR(VLOOKUP(A9,'Gruber Tabelle'!$A$6:$U$336,16,0),0) -> 0 | M9: =IFERROR(VLOOKUP(A9,'Gruber Tabelle'!$A$6:$U$336,17,0),0) -> 0 | N9: =IFERROR(VLOOKUP(A9,'Gruber Tabelle'!$A$6:$U$336,18,0),0) -> 0 | O9: =IFERROR(VLOOKUP(A9,'Gruber Tabelle'!$A$6:$U$336,19,0),0) -> 0 | P9: =IFERROR(VLOOKUP(A9,'Gruber Tabelle'!$A$6:$U$336,20,0),0) -> 0 | Q9: =IFERROR(VLOOKUP(A9,'Gruber Tabelle'!$A$6:$U$336,21,0),0) -> 0 | R9: =IFERROR(VLOOKUP(A9,'Gruber Tabelle'!$A$6:$V$336,22,0),0) -> 0
B10: =IFERROR(VLOOKUP(A10,'Gruber Tabelle'!$A$6:$U$336,2,0),0) -> 0 | C10: =IFERROR(VLOOKUP(A10,'Gruber Tabelle'!$A$6:$U$336,3,0)/1000,0) -> 0 | D10: =IFERROR(VLOOKUP(A10,'Gruber Tabelle'!$A$6:$U$336,3,0),0) -> 0 | E10: 0 | G10: =IFERROR(VLOOKUP(A10,'Gruber Tabelle'!$A$6:$U$336,5,0),0) -> 0 | H10: =IFERROR(VLOOKUP(A10,'Gruber Tabelle'!$A$6:$U$336,7,0),0) -> 0 | I10: =IFERROR(VLOOKUP(A10,'Gruber Tabelle'!$A$6:$U$336,12,0),0) -> 0 | J10: =IFERROR(VLOOKUP(A10,'Gruber Tabelle'!$A$6:$U$336,13,0),0) -> 0 | K10: =IFERROR(VLOOKUP(A10,'Gruber Tabelle'!$A$6:$U$336,14,0),0) -> 0 | L10: =IFERROR(VLOOKUP(A10,'Gruber Tabelle'!$A$6:$U$336,16,0),0) -> 0 | M10: =IFERROR(VLOOKUP(A10,'Gruber Tabelle'!$A$6:$U$336,17,0),0) -> 0 | N10: =IFERROR(VLOOKUP(A10,'Gruber Tabelle'!$A$6:$U$336,18,0),0) -> 0 | O10: =IFERROR(VLOOKUP(A10,'Gruber Tabelle'!$A$6:$U$336,19,0),0) -> 0 | P10: =IFERROR(VLOOKUP(A10,'Gruber Tabelle'!$A$6:$U$336,20,0),0) -> 0 | Q10: =IFERROR(VLOOKUP(A10,'Gruber Tabelle'!$A$6:$U$336,21,0),0) -> 0 | R10: =IFERROR(VLOOKUP(A10,'Gruber Tabelle'!$A$6:$V$336,22,0),0) -> 0
B11: =IFERROR(VLOOKUP(A11,'Gruber Tabelle'!$A$6:$U$336,2,0),0) -> 0 | C11: =IFERROR(VLOOKUP(A11,'Gruber Tabelle'!$A$6:$U$336,3,0)/1000,0) -> 0 | D11: =IFERROR(VLOOKUP(A11,'Gruber Tabelle'!$A$6:$U$336,3,0),0) -> 0 | E11: 0 | G11: =IFERROR(VLOOKUP(A11,'Gruber Tabelle'!$A$6:$U$336,5,0),0) -> 0 | H11: =IFERROR(VLOOKUP(A11,'Gruber Tabelle'!$A$6:$U$336,7,0),0) -> 0 | I11: =IFERROR(VLOOKUP(A11,'Gruber Tabelle'!$A$6:$U$336,12,0),0) -> 0 | J11: =IFERROR(VLOOKUP(A11,'Gruber Tabelle'!$A$6:$U$336,13,0),0) -> 0 | K11: =IFERROR(VLOOKUP(A11,'Gruber Tabelle'!$A$6:$U$336,14,0),0) -> 0 | L11: =IFERROR(VLOOKUP(A11,'Gruber Tabelle'!$A$6:$U$336,16,0),0) -> 0 | M11: =IFERROR(VLOOKUP(A11,'Gruber Tabelle'!$A$6:$U$336,17,0),0) -> 0 | N11: =IFERROR(VLOOKUP(A11,'Gruber Tabelle'!$A$6:$U$336,18,0),0) -> 0 | O11: =IFERROR(VLOOKUP(A11,'Gruber Tabelle'!$A$6:$U$336,19,0),0) -> 0 | P11: =IFERROR(VLOOKUP(A11,'Gruber Tabelle'!$A$6:$U$336,20,0),0) -> 0 | Q11: =IFERROR(VLOOKUP(A11,'Gruber Tabelle'!$A$6:$U$336,21,0),0) -> 0 | R11: =IFERROR(VLOOKUP(A11,'Gruber Tabelle'!$A$6:$V$336,22,0),0) -> 0
B12: =IFERROR(VLOOKUP(A12,'Gruber Tabelle'!$A$6:$U$336,2,0),0) -> 0 | C12: =IFERROR(VLOOKUP(A12,'Gruber Tabelle'!$A$6:$U$336,3,0)/1000,0) -> 0 | D12: =IFERROR(VLOOKUP(A12,'Gruber Tabelle'!$A$6:$U$336,3,0),0) -> 0 | E12: 0 | G12: =IFERROR(VLOOKUP(A12,'Gruber Tabelle'!$A$6:$U$336,5,0),0) -> 0 | H12: =IFERROR(VLOOKUP(A12,'Gruber Tabelle'!$A$6:$U$336,7,0),0) -> 0 | I12: =IFERROR(VLOOKUP(A12,'Gruber Tabelle'!$A$6:$U$336,12,0),0) -> 0 | J12: =IFERROR(VLOOKUP(A12,'Gruber Tabelle'!$A$6:$U$336,13,0),0) -> 0 | K12: =IFERROR(VLOOKUP(A12,'Gruber Tabelle'!$A$6:$U$336,14,0),0) -> 0 | L12: =IFERROR(VLOOKUP(A12,'Gruber Tabelle'!$A$6:$U$336,16,0),0) -> 0 | M12: =IFERROR(VLOOKUP(A12,'Gruber Tabelle'!$A$6:$U$336,17,0),0) -> 0 | N12: =IFERROR(VLOOKUP(A12,'Gruber Tabelle'!$A$6:$U$336,18,0),0) -> 0 | O12: =IFERROR(VLOOKUP(A12,'Gruber Tabelle'!$A$6:$U$336,19,0),0) -> 0 | P12: =IFERROR(VLOOKUP(A12,'Gruber Tabelle'!$A$6:$U$336,20,0),0) -> 0 | Q12: =IFERROR(VLOOKUP(A12,'Gruber Tabelle'!$A$6:$U$336,21,0),0) -> 0 | R12: =IFERROR(VLOOKUP(A12,'Gruber Tabelle'!$A$6:$V$336,22,0),0) -> 0
B13: =IFERROR(VLOOKUP(A13,'Gruber Tabelle'!$A$6:$U$336,2,0),0) -> 0 | C13: =IFERROR(VLOOKUP(A13,'Gruber Tabelle'!$A$6:$U$336,3,0)/1000,0) -> 0 | D13: =IFERROR(VLOOKUP(A13,'Gruber Tabelle'!$A$6:$U$336,3,0),0) -> 0 | E13: 0 | G13: =IFERROR(VLOOKUP(A13,'Gruber Tabelle'!$A$6:$U$336,5,0),0) -> 0 | H13: =IFERROR(VLOOKUP(A13,'Gruber Tabelle'!$A$6:$U$336,7,0),0) -> 0 | I13: =IFERROR(VLOOKUP(A13,'Gruber Tabelle'!$A$6:$U$336,12,0),0) -> 0 | J13: =IFERROR(VLOOKUP(A13,'Gruber Tabelle'!$A$6:$U$336,13,0),0) -> 0 | K13: =IFERROR(VLOOKUP(A13,'Gruber Tabelle'!$A$6:$U$336,14,0),0) -> 0 | L13: =IFERROR(VLOOKUP(A13,'Gruber Tabelle'!$A$6:$U$336,16,0),0) -> 0 | M13: =IFERROR(VLOOKUP(A13,'Gruber Tabelle'!$A$6:$U$336,17,0),0) -> 0 | N13: =IFERROR(VLOOKUP(A13,'Gruber Tabelle'!$A$6:$U$336,18,0),0) -> 0 | O13: =IFERROR(VLOOKUP(A13,'Gruber Tabelle'!$A$6:$U$336,19,0),0) -> 0 | P13: =IFERROR(VLOOKUP(A13,'Gruber Tabelle'!$A$6:$U$336,20,0),0) -> 0 | Q13: =IFERROR(VLOOKUP(A13,'Gruber Tabelle'!$A$6:$U$336,21,0),0) -> 0 | R13: =IFERROR(VLOOKUP(A13,'Gruber Tabelle'!$A$6:$V$336,22,0),0) -> 0
A14: Nr | B14: Futterart | C14: TM % | D14: TM kg | E14: FM kg | F14: TM kg | G14: aNDF om g | H14: Rohprotein g | I14: ME MJ | J14: XS+XZ | K14: bXS | L14: Ca | M14: P | N14: Mg | O14: Na | P14: K | Q14: Preis | R14: NDFomGF
A15: =A4 -> 0 | B15: =IFERROR(VLOOKUP(A15,'Gruber Tabelle'!$A$6:$U$336,2,0),0) -> 0 | F15: =IF(A15=0,0,IF(AND(D15>0,E15=0),D15,IF(AND(E15>0,D15=0),E15*C15,IF(AND(D15>=0,E15>=0),"TM o. FM?")))) -> 0 | G15: =IFERROR(G4*F15,0) -> 0 | H15: =IFERROR(H4*F15,0) -> 0 | I15: =IFERROR(I4*F15,0) -> 0 | J15: =IFERROR(J4*F15,0) -> 0 | K15: =IFERROR(K4*F15,0) -> 0 | L15: =IFERROR(L4*F15,0) -> 0 | M15: =IFERROR(M4*F15,0) -> 0 | N15: =IFERROR(N4*F15,0) -> 0 | O15: =IFERROR(O4*F15,0) -> 0 | P15: =IFERROR(P4*F15,0) -> 0 | Q15: =IF(C15>0,Q4*E15/100,0) -> 0 | R15: =IFERROR(IF(R4="GF",G4*F15,0),0) -> 0
A16: 0 | B16: =IFERROR(VLOOKUP(A16,'Gruber Tabelle'!$A$6:$U$336,2,0),0) -> 0 | F16: 0 | G16: 0 | H16: 0 | I16: 0 | J16: 0 | K16: 0 | L16: 0 | M16: 0 | N16: 0 | O16: 0 | P16: 0 | Q16: 0 | R16: =IFERROR(IF(R5="GF",G5*F16,0),0) -> 0
A17: 0 | B17: =IFERROR(VLOOKUP(A17,'Gruber Tabelle'!$A$6:$U$336,2,0),0) -> 0 | F17: =IF(A17=0,0,IF(AND(D17>0,E17=0),D17,IF(AND(E17>0,D17=0),E17*C17,IF(AND(D17>=0,E17>=0),"TM o. FM?")))) -> 0 | G17: 0 | H17: 0 | I17: 0 | J17: 0 | K17: 0 | L17: 0 | M17: 0 | N17: 0 | O17: 0 | P17: 0 | Q17: 0 | R17: 0
A18: 0 | B18: =IFERROR(VLOOKUP(A18,'Gruber Tabelle'!$A$6:$U$336,2,0),0) -> 0 | F18: 0 | G18: 0 | H18: 0 | I18: 0 | J18: 0 | K18: 0 | L18: 0 | M18: 0 | N18: 0 | O18: 0 | P18: 0 | Q18: 0 | R18: 0
A19: 0 | B19: =IFERROR(VLOOKUP(A19,'Gruber Tabelle'!$A$6:$U$336,2,0),0) -> 0 | F19: 0 | G19: 0 | H19: 0 | I19: 0 | J19: 0 | K19: 0 | L19: 0 | M19: 0 | N19: 0 | O19: 0 | P19: 0 | Q19: 0 | R19: 0
A20: 0 | B20: =IFERROR(VLOOKUP(A20,'Gruber Tabelle'!$A$6:$U$336,2,0),0) -> 0 | F20: 0 | G20: 0 | H20: 0 | I20: 0 | J20: 0 | K20: 0 | L20: 0 | M20: 0 | N20: 0 | O20: 0 | P20: 0 | Q20: 0 | R20: 0
A21: 0 | B21: =IFERROR(VLOOKUP(A21,'Gruber Tabelle'!$A$6:$U$336,2,0),0) -> 0 | F21: 0 | G21: 0 | H21: 0 | I21: 0 | J21: 0 | K21: 0 | L21: 0 | M21: 0 | N21: 0 | O21: 0 | P21: 0 | Q21: 0 | R21: 0
A22: 0 | B22: =IFERROR(VLOOKUP(A22,'Gruber Tabelle'!$A$6:$U$336,2,0),0) -> 0 | F22: 0 | G22: 0 | H22: 0 | I22: 0 | J22: 0 | K22: 0 | L22: 0 | M22: 0 | N22: 0 | O22: 0 | P22: 0 | Q22: 0 | R22: 0
A23: 0 | B23: =IFERROR(VLOOKUP(A23,'Gruber Tabelle'!$A$6:$U$336,2,0),0) -> 0 | F23: 0 | G23: 0 | H23: 0 | I23: 0 | J23: 0 | K23: 0 | L23: 0 | M23: 0 | N23: 0 | O23: 0 | P23: 0 | Q23: 0 | R23: 0
A24: 0 | B24: =IFERROR(VLOOKUP(A24,'Gruber Tabelle'!$A$6:$U$336,2,0),0) -> 0 | F24: 0 | G24: 0 | H24: 0 | I24: 0 | J24: 0 | K24: 0 | L24: 0 | M24: 0 | N24: 0 | O24: 0 | P24: 0 | Q24: 0 | R24: 0
A25: Summen TM und Gehaltswerte: | D25: =SUM(F15:F24) -> 0 | E25: =SUM(E4:E13) -> 0 | G25: =SUM(G15:G24) -> 0 | H25: =SUM(H15:H24) -> 0 | I25: 0 | J25: =SUM(J15:J24) -> 0 | K25: =SUM(K15:K24) -> 0 | L25: 0 | M25: 0 | N25: 0 | O25: 0 | P25: 0 | Q25: 0 | R25: =SUM(R15:R24) -> 0
A26: Mischung 1 kg: | D26: =IF('Mischung 1'!E25>0,E26/'Mischung 1'!E25,0) -> 0 | G26: =IF('Mischung 1'!F25>0,'Mischung 1'!F25*D26,0) -> 0 | H26: =IF('Mischung 1'!G25>0,'Mischung 1'!G25*D26,0) -> 0 | I26: =IF('Mischung 1'!H25>0,'Mischung 1'!H25*D26,0) -> 0 | J26: =IF('Mischung 1'!I25>0,'Mischung 1'!I25*D26,0) -> 0 | K26: =IF('Mischung 1'!J25>0,'Mischung 1'!J25*D26,0) -> 0 | L26: =IF('Mischung 1'!K25>0,'Mischung 1'!K25*D26,0) -> 0 | M26: =IF('Mischung 1'!L25>0,'Mischung 1'!L25*D26,0) -> 0 | N26: =IF('Mischung 1'!M25>0,'Mischung 1'!M25*D26,0) -> 0 | O26: =IF('Mischung 1'!N25>0,'Mischung 1'!N25*D26,0) -> 0 | P26: =IF('Mischung 1'!O25>0,'Mischung 1'!O25*D26,0) -> 0 | Q26: =IF('Mischung 1'!P25>0,'Mischung 1'!P25*D26,0) -> 0
A27: Mischung 2 kg: | D27: =IF('Mischung 2'!E25>0,E27/'Mischung 2'!E25,0) -> 0 | G27: =IF('Mischung 2'!F25>0,'Mischung 2'!F25*D27,0) -> 0 | H27: =IF('Mischung 2'!G25>0,'Mischung 2'!G25*D27,0) -> 0 | I27: =IF('Mischung 2'!H25>0,'Mischung 2'!H25*D27,0) -> 0 | J27: =IF('Mischung 2'!I25>0,'Mischung 2'!I25*D27,0) -> 0 | K27: =IF('Mischung 2'!J25>0,'Mischung 2'!J25*D27,0) -> 0 | L27: =IF('Mischung 2'!K25>0,'Mischung 2'!K25*D27,0) -> 0 | M27: =IF('Mischung 2'!L25>0,'Mischung 2'!L25*D27,0) -> 0 | N27: =IF('Mischung 2'!M25>0,'Mischung 2'!M25*D27,0) -> 0 | O27: =IF('Mischung 2'!N25>0,'Mischung 2'!N25*D27,0) -> 0 | P27: =IF('Mischung 2'!O25>0,'Mischung 2'!O25*D27,0) -> 0 | Q27: =IF('Mischung 2'!P25>0,'Mischung 2'!P25*D27,0) -> 0
A28: Gesamtfutter GF+ KF TM und Gehaltsw.: | D28: =SUM(D25:D27) -> 0 | E28: =SUM(E25+E26+E27) -> 0 | G28: =SUM(G25+G26+G27) -> 0 | H28: 0 | I28: 0 | J28: 0 | K28: 0 | L28: 0 | M28: 0 | N28: 0 | O28: 0 | P28: 0 | Q28: 0
A29: =A2 -> Bitte Sollwerte auswählen !!! | D29: =IFERROR(VLOOKUP($A$2,Sollwerte!$B$6:$P$80,3,0)/1000,0) -> 0 | G29: =IFERROR(VLOOKUP($A$2,Sollwerte!$B$6:$P$80,4,0)/100,0) -> 0 | H29: =IFERROR(VLOOKUP($A$2,Sollwerte!$B$6:$P$80,5,0),0) -> 0 | I29: =IFERROR(VLOOKUP($A$2,Sollwerte!$B$6:$P$80,7,0),0) -> 0 | L29: =IFERROR(VLOOKUP($A$2,Sollwerte!$B$6:$P$80,9,0),0) -> 0 | M29: =IFERROR(VLOOKUP($A$2,Sollwerte!$B$6:$P$80,10,0),0) -> 0 | N29: =IFERROR(VLOOKUP($A$2,Sollwerte!$B$6:$P$80,11,0),0) -> 0 | O29: =IFERROR(VLOOKUP($A$2,Sollwerte!$B$6:$P$80,12,0),0) -> 0 | P29: =IFERROR(VLOOKUP($A$2,Sollwerte!$B$6:$P$80,13,0),0) -> 0
A30: Differenz zu Sollwert - % Anteil aNDF GF an TM | D30: =IF(D29>0,D28-D29,0) -> 0 | E30: TM % | F30: Strukturindex | G30: % aNDF om | H30: =IF(H29>0,H28-H29,0) -> 0 | I30: =IF(I29>0,I28-I29,0) -> 0 | J30: kg pabKH | L30: 0 | M30: 0 | N30: 0 | O30: 0 | P30: 0
D31: =IF(D30=0,0,D30/D29) -> 0 | E31: =IF(D28>0,D28/E28,0) -> 0 | F31: =IF(L35>100,100,L35) -> 0 | G31: =IF(D28>0,R25/D28/1000,0) -> 0 | H31: =IF(H30=0,0,H30/H29) -> 0 | I31: =IF(I30=0,0,I30/I29) -> 0 | J31: =(J28-K28)/1000 -> 0 | L31: 0 | M31: 0 | N31: 0 | O31: 0 | P31: 0
F32: =IFERROR(VLOOKUP($A$2,Sollwerte!$B$6:$P$80,15,0),0) -> 0 | G32: =R25/1000 -> 0 | J32: =J31 -> 0
G33: =G32*F32 -> 0 | J33: =J32*F32 -> 0
I34: =J33-1.32 -> -1.32 | J34: =I34/0.5 -> -2.64
G35: =G33 -> 0 | I35: =J34+G35 -> -2.64 | K35: =G35/I35 -> 0 | L35: =K35*100 -> 0

Sheet Mischung 1
A3: Nr | B3: Futterart | C3: Kraftfutter | F3: aNDFom g | G3: XP g | H3: ME MJ | I3: XS+XZ | J3: bXS | K3: Ca | L3: P | M3: Mg | N3: Na | O3: K | P3: Preis / dt FM
B4: =IFERROR(VLOOKUP(A4,'Gruber Tabelle'!$A$6:$U$336,2,0),0) -> 0 | C4: % | F4: =IFERROR(VLOOKUP(A4,'Gruber Tabelle'!$A$6:$U$336,5,0),0) -> 0 | G4: =IFERROR(VLOOKUP(A4,'Gruber Tabelle'!$A$6:$U$336,7,0),0) -> 0 | H4: =IFERROR(VLOOKUP(A4,'Gruber Tabelle'!$A$6:$U$336,12,0),0) -> 0 | I4: =IFERROR(VLOOKUP(A4,'Gruber Tabelle'!$A$6:$U$336,13,0),0) -> 0 | J4: =IFERROR(VLOOKUP(A4,'Gruber Tabelle'!$A$6:$U$336,14,0),0) -> 0 | K4: =IFERROR(VLOOKUP(A4,'Gruber Tabelle'!$A$6:$U$336,16,0),0) -> 0 | L4: =IFERROR(VLOOKUP(A4,'Gruber Tabelle'!$A$6:$U$336,17,0),0) -> 0 | M4: =IFERROR(VLOOKUP(A4,'Gruber Tabelle'!$A$6:$U$336,18,0),0) -> 0 | N4: =IFERROR(VLOOKUP(A4,'Gruber Tabelle'!$A$6:$U$336,19,0),0) -> 0 | O4: =IFERROR(VLOOKUP(A4,'Gruber Tabelle'!$A$6:$U$336,20,0),0) -> 0 | P4: =IFERROR(VLOOKUP(A4,'Gruber Tabelle'!$A$6:$U$336,21,0),0) -> 0
B5: =IFERROR(VLOOKUP(A5,'Gruber Tabelle'!$A$6:$U$336,2,0),0) -> 0 | F5: =IFERROR(VLOOKUP(A5,'Gruber Tabelle'!$A$6:$U$336,5,0),0) -> 0 | G5: =IFERROR(VLOOKUP(A5,'Gruber Tabelle'!$A$6:$U$336,7,0),0) -> 0 | H5: =IFERROR(VLOOKUP(A5,'Gruber Tabelle'!$A$6:$U$336,12,0),0) -> 0 | I5: =IFERROR(VLOOKUP(A5,'Gruber Tabelle'!$A$6:$U$336,13,0),0) -> 0 | J5: =IFERROR(VLOOKUP(A5,'Gruber Tabelle'!$A$6:$U$336,14,0),0) -> 0 | K5: =IFERROR(VLOOKUP(A5,'Gruber Tabelle'!$A$6:$U$336,16,0),0) -> 0 | L5: =IFERROR(VLOOKUP(A5,'Gruber Tabelle'!$A$6:$U$336,17,0),0) -> 0 | M5: =IFERROR(VLOOKUP(A5,'Gruber Tabelle'!$A$6:$U$336,18,0),0) -> 0 | N5: =IFERROR(VLOOKUP(A5,'Gruber Tabelle'!$A$6:$U$336,19,0),0) -> 0 | O5: =IFERROR(VLOOKUP(A5,'Gruber Tabelle'!$A$6:$U$336,20,0),0) -> 0 | P5: =IFERROR(VLOOKUP(A5,'Gruber Tabelle'!$A$6:$U$336,21,0),0) -> 0
B6: =IFERROR(VLOOKUP(A6,'Gruber Tabelle'!$A$6:$U$336,2,0),0) -> 0 | F6: =IFERROR(VLOOKUP(A6,'Gruber Tabelle'!$A$6:$U$336,5,0),0) -> 0 | G6: =IFERROR(VLOOKUP(A6,'Gruber Tabelle'!$A$6:$U$336,7,0),0) -> 0 | H6: =IFERROR(VLOOKUP(A6,'Gruber Tabelle'!$A$6:$U$336,12,0),0) -> 0 | I6: =IFERROR(VLOOKUP(A6,'Gruber Tabelle'!$A$6:$U$336,13,0),0) -> 0 | J6: =IFERROR(VLOOKUP(A6,'Gruber Tabelle'!$A$6:$U$336,14,0),0) -> 0 | K6: =IFERROR(VLOOKUP(A6,'Gruber Tabelle'!$A$6:$U$336,16,0),0) -> 0 | L6: =IFERROR(VLOOKUP(A6,'Gruber Tabelle'!$A$6:$U$336,17,0),0) -> 0 | M6: =IFERROR(VLOOKUP(A6,'Gruber Tabelle'!$A$6:$U$336,18,0),0) -> 0 | N6: =IFERROR(VLOOKUP(A6,'Gruber Tabelle'!$A$6:$U$336,19,0),0) -> 0 | O6: =IFERROR(VLOOKUP(A6,'Gruber Tabelle'!$A$6:$U$336,20,0),0) -> 0 | P6: =IFERROR(VLOOKUP(A6,'Gruber Tabelle'!$A$6:$U$336,21,0),0) -> 0
B7: =IFERROR(VLOOKUP(A7,'Gruber Tabelle'!$A$6:$U$336,2,0),0) -> 0 | F7: =IFERROR(VLOOKUP(A7,'Gruber Tabelle'!$A$6:$U$336,5,0),0) -> 0 | G7: =IFERROR(VLOOKUP(A7,'Gruber Tabelle'!$A$6:$U$336,7,0),0) -> 0 | H7: =IFERROR(VLOOKUP(A7,'Gruber Tabelle'!$A$6:$U$336,12,0),0) -> 0 | I7: =IFERROR(VLOOKUP(A7,'Gruber Tabelle'!$A$6:$U$336,13,0),0) -> 0 | J7: =IFERROR(VLOOKUP(A7,'Gruber Tabelle'!$A$6:$U$336,14,0),0) -> 0 | K7: =IFERROR(VLOOKUP(A7,'Gruber Tabelle'!$A$6:$U$336,16,0),0) -> 0 | L7: =IFERROR(VLOOKUP(A7,'Gruber Tabelle'!$A$6:$U$336,17,0),0) -> 0 | M7: =IFERROR(VLOOKUP(A7,'Gruber Tabelle'!$A$6:$U$336,18,0),0) -> 0 | N7: =IFERROR(VLOOKUP(A7,'Gruber Tabelle'!$A$6:$U$336,19,0),0) -> 0 | O7: =IFERROR(VLOOKUP(A7,'Gruber Tabelle'!$A$6:$U$336,20,0),0) -> 0 | P7: =IFERROR(VLOOKUP(A7,'Gruber Tabelle'!$A$6:$U$336,21,0),0) -> 0
B8: =IFERROR(VLOOKUP(A8,'Gruber Tabelle'!$A$6:$U$336,2,0),0) -> 0 | F8: =IFERROR(VLOOKUP(A8,'Gruber Tabelle'!$A$6:$U$336,5,0),0) -> 0 | G8: =IFERROR(VLOOKUP(A8,'Gruber Tabelle'!$A$6:$U$336,7,0),0) -> 0 | H8: =IFERROR(VLOOKUP(A8,'Gruber Tabelle'!$A$6:$U$336,12,0),0) -> 0 | I8: =IFERROR(VLOOKUP(A8,'Gruber Tabelle'!$A$6:$U$336,13,0),0) -> 0 | J8: =IFERROR(VLOOKUP(A8,'Gruber Tabelle'!$A$6:$U$336,14,0),0) -> 0 | K8: =IFERROR(VLOOKUP(A8,'Gruber Tabelle'!$A$6:$U$336,16,0),0) -> 0 | L8: =IFERROR(VLOOKUP(A8,'Gruber Tabelle'!$A$6:$U$336,17,0),0) -> 0 | M8: =IFERROR(VLOOKUP(A8,'Gruber Tabelle'!$A$6:$U$336,18,0),0) -> 0 | N8: =IFERROR(VLOOKUP(A8,'Gruber Tabelle'!$A$6:$U$336,19,0),0) -> 0 | O8: =IFERROR(VLOOKUP(A8,'Gruber Tabelle'!$A$6:$U$336,20,0),0) -> 0 | P8: =IFERROR(VLOOKUP(A8,'Gruber Tabelle'!$A$6:$U$336,21,0),0) -> 0
B9: =IFERROR(VLOOKUP(A9,'Gruber Tabelle'!$A$6:$U$336,2,0),0) -> 0 | F9: =IFERROR(VLOOKUP(A9,'Gruber Tabelle'!$A$6:$U$336,5,0),0) -> 0 | G9: =IFERROR(VLOOKUP(A9,'Gruber Tabelle'!$A$6:$U$336,7,0),0) -> 0 | H9: =IFERROR(VLOOKUP(A9,'Gruber Tabelle'!$A$6:$U$336,12,0),0) -> 0 | I9: =IFERROR(VLOOKUP(A9,'Gruber Tabelle'!$A$6:$U$336,13,0),0) -> 0 | J9: =IFERROR(VLOOKUP(A9,'Gruber Tabelle'!$A$6:$U$336,14,0),0) -> 0 | K9: =IFERROR(VLOOKUP(A9,'Gruber Tabelle'!$A$6:$U$336,16,0),0) -> 0 | L9: =IFERROR(VLOOKUP(A9,'Gruber Tabelle'!$A$6:$U$336,17,0),0) -> 0 | M9: =IFERROR(VLOOKUP(A9,'Gruber Tabelle'!$A$6:$U$336,18,0),0) -> 0 | N9: =IFERROR(VLOOKUP(A9,'Gruber Tabelle'!$A$6:$U$336,19,0),0) -> 0 | O9: =IFERROR(VLOOKUP(A9,'Gruber Tabelle'!$A$6:$U$336,20,0),0) -> 0 | P9: =IFERROR(VLOOKUP(A9,'Gruber Tabelle'!$A$6:$U$336,21,0),0) -> 0
B10: =IFERROR(VLOOKUP(A10,'Gruber Tabelle'!$A$6:$U$336,2,0),0) -> 0 | F10: =IFERROR(VLOOKUP(A10,'Gruber Tabelle'!$A$6:$U$336,5,0),0) -> 0 | G10: =IFERROR(VLOOKUP(A10,'Gruber Tabelle'!$A$6:$U$336,7,0),0) -> 0 | H10: =IFERROR(VLOOKUP(A10,'Gruber Tabelle'!$A$6:$U$336,12,0),0) -> 0 | I10: =IFERROR(VLOOKUP(A10,'Gruber Tabelle'!$A$6:$U$336,13,0),0) -> 0 | J10: =IFERROR(VLOOKUP(A10,'Gruber Tabelle'!$A$6:$U$336,14,0),0) -> 0 | K10: =IFERROR(VLOOKUP(A10,'Gruber Tabelle'!$A$6:$U$336,16,0),0) -> 0 | L10: =IFERROR(VLOOKUP(A10,'Gruber Tabelle'!$A$6:$U$336,17,0),0) -> 0 | M10: =IFERROR(VLOOKUP(A10,'Gruber Tabelle'!$A$6:$U$336,18,0),0) -> 0 | N10: =IFERROR(VLOOKUP(A10,'Gruber Tabelle'!$A$6:$U$336,19,0),0) -> 0 | O10: =IFERROR(VLOOKUP(A10,'Gruber Tabelle'!$A$6:$U$336,20,0),0) -> 0 | P10: =IFERROR(VLOOKUP(A10,'Gruber Tabelle'!$A$6:$U$336,21,0),0) -> 0
B11: =IFERROR(VLOOKUP(A11,'Gruber Tabelle'!$A$6:$U$336,2,0),0) -> 0 | F11: =IFERROR(VLOOKUP(A11,'Gruber Tabelle'!$A$6:$U$336,5,0),0) -> 0 | G11: =IFERROR(VLOOKUP(A11,'Gruber Tabelle'!$A$6:$U$336,7,0),0) -> 0 | H11: =IFERROR(VLOOKUP(A11,'Gruber Tabelle'!$A$6:$U$336,12,0),0) -> 0 | I11: =IFERROR(VLOOKUP(A11,'Gruber Tabelle'!$A$6:$U$336,13,0),0) -> 0 | J11: =IFERROR(VLOOKUP(A11,'Gruber Tabelle'!$A$6:$U$336,14,0),0) -> 0 | K11: =IFERROR(VLOOKUP(A11,'Gruber Tabelle'!$A$6:$U$336,16,0),0) -> 0 | L11: =IFERROR(VLOOKUP(A11,'Gruber Tabelle'!$A$6:$U$336,17,0),0) -> 0 | M11: =IFERROR(VLOOKUP(A11,'Gruber Tabelle'!$A$6:$U$336,18,0),0) -> 0 | N11: =IFERROR(VLOOKUP(A11,'Gruber Tabelle'!$A$6:$U$336,19,0),0) -> 0 | O11: =IFERROR(VLOOKUP(A11,'Gruber Tabelle'!$A$6:$U$336,20,0),0) -> 0 | P11: =IFERROR(VLOOKUP(A11,'Gruber Tabelle'!$A$6:$U$336,21,0),0) -> 0
B12: =IFERROR(VLOOKUP(A12,'Gruber Tabelle'!$A$6:$U$336,2,0),0) -> 0 | F12: =IFERROR(VLOOKUP(A12,'Gruber Tabelle'!$A$6:$U$336,5,0),0) -> 0 | G12: =IFERROR(VLOOKUP(A12,'Gruber Tabelle'!$A$6:$U$336,7,0),0) -> 0 | H12: =IFERROR(VLOOKUP(A12,'Gruber Tabelle'!$A$6:$U$336,12,0),0) -> 0 | I12: =IFERROR(VLOOKUP(A12,'Gruber Tabelle'!$A$6:$U$336,13,0),0) -> 0 | J12: =IFERROR(VLOOKUP(A12,'Gruber Tabelle'!$A$6:$U$336,14,0),0) -> 0 | K12: =IFERROR(VLOOKUP(A12,'Gruber Tabelle'!$A$6:$U$336,16,0),0) -> 0 | L12: =IFERROR(VLOOKUP(A12,'Gruber Tabelle'!$A$6:$U$336,17,0),0) -> 0 | M12: =IFERROR(VLOOKUP(A12,'Gruber Tabelle'!$A$6:$U$336,18,0),0) -> 0 | N12: =IFERROR(VLOOKUP(A12,'Gruber Tabelle'!$A$6:$U$336,19,0),0) -> 0 | O12: =IFERROR(VLOOKUP(A12,'Gruber Tabelle'!$A$6:$U$336,20,0),0) -> 0 | P12: =IFERROR(VLOOKUP(A12,'Gruber Tabelle'!$A$6:$U$336,21,0),0) -> 0
B13: =IFERROR(VLOOKUP(A13,'Gruber Tabelle'!$A$6:$U$336,2,0),0) -> 0 | F13: =IFERROR(VLOOKUP(A13,'Gruber Tabelle'!$A$6:$U$336,5,0),0) -> 0 | G13: =IFERROR(VLOOKUP(A13,'Gruber Tabelle'!$A$6:$U$336,7,0),0) -> 0 | H13: =IFERROR(VLOOKUP(A13,'Gruber Tabelle'!$A$6:$U$336,12,0),0) -> 0 | I13: =IFERROR(VLOOKUP(A13,'Gruber Tabelle'!$A$6:$U$336,13,0),0) -> 0 | J13: =IFERROR(VLOOKUP(A13,'Gruber Tabelle'!$A$6:$U$336,14,0),0) -> 0 | K13: =IFERROR(VLOOKUP(A13,'Gruber Tabelle'!$A$6:$U$336,16,0),0) -> 0 | L13: =IFERROR(VLOOKUP(A13,'Gruber Tabelle'!$A$6:$U$336,17,0),0) -> 0 | M13: =IFERROR(VLOOKUP(A13,'Gruber Tabelle'!$A$6:$U$336,18,0),0) -> 0 | N13: =IFERROR(VLOOKUP(A13,'Gruber Tabelle'!$A$6:$U$336,19,0),0) -> 0 | O13: =IFERROR(VLOOKUP(A13,'Gruber Tabelle'!$A$6:$U$336,20,0),0) -> 0 | P13: =IFERROR(VLOOKUP(A13,'Gruber Tabelle'!$A$6:$U$336,21,0),0) -> 0
A14: Nr | B14: Futterart | C14: Mischungs- Anteil in % | D14: TM % | E14: FM kg | F14: aNDFom g | G14: XP g | H14: ME MJ | I14: XS+XZ | J14: bXS | K14: Ca | L14: P | M14: Mg | N14: Na | O14: K | P14: Preis
A15: =A4 -> 0 | B15: =IFERROR(VLOOKUP(A15,'Gruber Tabelle'!$A$6:$U$336,2,0),0) -> 0 | D15: =IFERROR(VLOOKUP(A4,'Gruber Tabelle'!$A$6:$U$388,3,0),0)/1000 -> 0 | E15: =IF(D15>0,(1/D15*C15)," ") ->  | F15: =IF(F4>0,F4*C15," ") ->  | G15: =IF(G4>0,G4*C15," ") ->  | H15: =IF(H4>0,H4*C15," ") ->  | I15: =IF(I4>0,I4*C15," ") ->  | J15: =IF(J4>0,J4*C15," ") ->  | K15: =IF(K4>0,K4*C15," ") ->  | L15: =IF(L4>0,L4*C15," ") ->  | M15: =IF(M4>0,M4*C15," ") ->  | N15: =IF(N4>0,N4*C15," ") ->  | O15: =IF(O4>0,O4*C15," ") ->  | P15: =IF(C15>0,P4*E15/100,0) -> 0
A16: 0 | B16: =IFERROR(VLOOKUP(A16,'Gruber Tabelle'!$A$6:$U$336,2,0),0) -> 0 | D16: =IFERROR(VLOOKUP(A5,'Gruber Tabelle'!$A$6:$U$388,3,0),0)/1000 -> 0 | P16: 0
A17: 0 | B17: =IFERROR(VLOOKUP(A17,'Gruber Tabelle'!$A$6:$U$336,2,0),0) -> 0 | D17: =IFERROR(VLOOKUP(A6,'Gruber Tabelle'!$A$6:$U$388,3,0),0)/1000 -> 0 | P17: 0
A18: 0 | B18: =IFERROR(VLOOKUP(A18,'Gruber Tabelle'!$A$6:$U$336,2,0),0) -> 0 | D18: =IFERROR(VLOOKUP(A7,'Gruber Tabelle'!$A$6:$U$388,3,0),0)/1000 -> 0 | P18: 0
A19: 0 | B19: =IFERROR(VLOOKUP(A19,'Gruber Tabelle'!$A$6:$U$336,2,0),0) -> 0 | D19: =IFERROR(VLOOKUP(A8,'Gruber Tabelle'!$A$6:$U$388,3,0),0)/1000 -> 0 | P19: 0
A20: 0 | B20: =IFERROR(VLOOKUP(A20,'Gruber Tabelle'!$A$6:$U$336,2,0),0) -> 0 | D20: =IFERROR(VLOOKUP(A9,'Gruber Tabelle'!$A$6:$U$388,3,0),0)/1000 -> 0 | P20: 0
A21: 0 | B21: =IFERROR(VLOOKUP(A21,'Gruber Tabelle'!$A$6:$U$336,2,0),0) -> 0 | D21: =IFERROR(VLOOKUP(A10,'Gruber Tabelle'!$A$6:$U$388,3,0),0)/1000 -> 0 | P21: 0
A22: 0 | B22: =IFERROR(VLOOKUP(A22,'Gruber Tabelle'!$A$6:$U$336,2,0),0) -> 0 | D22: =IFERROR(VLOOKUP(A11,'Gruber Tabelle'!$A$6:$U$388,3,0),0)/1000 -> 0 | P22: 0
A23: 0 | B23: =IFERROR(VLOOKUP(A23,'Gruber Tabelle'!$A$6:$U$336,2,0),0) -> 0 | D23: =IFERROR(VLOOKUP(A12,'Gruber Tabelle'!$A$6:$U$388,3,0),0)/1000 -> 0 | P23: 0
A24: 0 | B24: =IFERROR(VLOOKUP(A24,'Gruber Tabelle'!$A$6:$U$336,2,0),0) -> 0 | D24: =IFERROR(VLOOKUP(A13,'Gruber Tabelle'!$A$6:$U$388,3,0),0)/1000 -> 0 | P24: 0
A25: Summe je kg Trockenmasse ( TM ) | C25: =SUM(C15:C24) -> 0 | D25: =IF(C25=100%,100/E25/100,0) -> 0 | E25: =SUM(E15:E24) -> 0 | F25: 0 | G25: 0 | H25: 0 | I25: 0 | J25: 0 | K25: 0 | L25: 0 | M25: 0 | N25: 0 | O25: 0 | P25: 0
A26: Summe je kg Frischmasse ( FM ) | E26: =SUM(E15:E24)*$D$25 -> 0 | F26: =SUM(F15:F24)*$D$25 -> 0 | G26: =SUM(G15:G24)*$D$25 -> 0 | H26: 0 | I26: 0 | J26: 0 | K26: 0 | L26: 0 | M26: 0 | N26: 0 | O26: 0 | P26: 0

Sheet Mischung 2
A3: Nr | B3: Futterart | C3: Kraftfutter | F3: aNDFom g | G3: XP g | H3: ME Mj | I3: XS+XZ | J3: bXS | K3: Ca | L3: P | M3: Mg | N3: Na | O3: K | P3: Preis / dt FM
B4: =IFERROR(VLOOKUP(A4,'Gruber Tabelle'!$A$6:$U$336,2,0),0) -> 0 | F4: =IFERROR(VLOOKUP(A4,'Gruber Tabelle'!$A$6:$U$336,5,0),0) -> 0 | G4: =IFERROR(VLOOKUP(A4,'Gruber Tabelle'!$A$6:$U$336,7,0),0) -> 0 | H4: =IFERROR(VLOOKUP(A4,'Gruber Tabelle'!$A$6:$U$336,12,0),0) -> 0 | I4: =IFERROR(VLOOKUP(A4,'Gruber Tabelle'!$A$6:$U$336,13,0),0) -> 0 | J4: =IFERROR(VLOOKUP(A4,'Gruber Tabelle'!$A$6:$U$336,14,0),0) -> 0 | K4: =IFERROR(VLOOKUP(A4,'Gruber Tabelle'!$A$6:$U$336,16,0),0) -> 0 | L4: =IFERROR(VLOOKUP(A4,'Gruber Tabelle'!$A$6:$U$336,17,0),0) -> 0 | M4: =IFERROR(VLOOKUP(A4,'Gruber Tabelle'!$A$6:$U$336,18,0),0) -> 0 | N4: =IFERROR(VLOOKUP(A4,'Gruber Tabelle'!$A$6:$U$336,19,0),0) -> 0 | O4: =IFERROR(VLOOKUP(A4,'Gruber Tabelle'!$A$6:$U$336,20,0),0) -> 0 | P4: =IFERROR(VLOOKUP(A4,'Gruber Tabelle'!$A$6:$U$336,21,0),0) -> 0
B5: =IFERROR(VLOOKUP(A5,'Gruber Tabelle'!$A$6:$U$336,2,0),0) -> 0 | F5: =IFERROR(VLOOKUP(A5,'Gruber Tabelle'!$A$6:$U$336,5,0),0) -> 0 | G5: =IFERROR(VLOOKUP(A5,'Gruber Tabelle'!$A$6:$U$336,7,0),0) -> 0 | H5: =IFERROR(VLOOKUP(A5,'Gruber Tabelle'!$A$6:$U$336,12,0),0) -> 0 | I5: =IFERROR(VLOOKUP(A5,'Gruber Tabelle'!$A$6:$U$336,13,0),0) -> 0 | J5: =IFERROR(VLOOKUP(A5,'Gruber Tabelle'!$A$6:$U$336,14,0),0) -> 0 | K5: =IFERROR(VLOOKUP(A5,'Gruber Tabelle'!$A$6:$U$336,16,0),0) -> 0 | L5: =IFERROR(VLOOKUP(A5,'Gruber Tabelle'!$A$6:$U$336,17,0),0) -> 0 | M5: =IFERROR(VLOOKUP(A5,'Gruber Tabelle'!$A$6:$U$336,18,0),0) -> 0 | N5: =IFERROR(VLOOKUP(A5,'Gruber Tabelle'!$A$6:$U$336,19,0),0) -> 0 | O5: =IFERROR(VLOOKUP(A5,'Gruber Tabelle'!$A$6:$U$336,20,0),0) -> 0 | P5: =IFERROR(VLOOKUP(A5,'Gruber Tabelle'!$A$6:$U$336,21,0),0) -> 0
B6: =IFERROR(VLOOKUP(A6,'Gruber Tabelle'!$A$6:$U$336,2,0),0) -> 0 | F6: =IFERROR(VLOOKUP(A6,'Gruber Tabelle'!$A$6:$U$336,5,0),0) -> 0 | G6: =IFERROR(VLOOKUP(A6,'Gruber Tabelle'!$A$6:$U$336,7,0),0) -> 0 | H6: =IFERROR(VLOOKUP(A6,'Gruber Tabelle'!$A$6:$U$336,12,0),0) -> 0 | I6: =IFERROR(VLOOKUP(A6,'Gruber Tabelle'!$A$6:$U$336,13,0),0) -> 0 | J6: =IFERROR(VLOOKUP(A6,'Gruber Tabelle'!$A$6:$U$336,14,0),0) -> 0 | K6: =IFERROR(VLOOKUP(A6,'Gruber Tabelle'!$A$6:$U$336,16,0),0) -> 0 | L6: =IFERROR(VLOOKUP(A6,'Gruber Tabelle'!$A$6:$U$336,17,0),0) -> 0 | M6: =IFERROR(VLOOKUP(A6,'Gruber Tabelle'!$A$6:$U$336,18,0),0) -> 0 | N6: =IFERROR(VLOOKUP(A6,'Gruber Tabelle'!$A$6:$U$336,19,0),0) -> 0 | O6: =IFERROR(VLOOKUP(A6,'Gruber Tabelle'!$A$6:$U$336,20,0),0) -> 0 | P6: =IFERROR(VLOOKUP(A6,'Gruber Tabelle'!$A$6:$U$336,21,0),0) -> 0
B7: =IFERROR(VLOOKUP(A7,'Gruber Tabelle'!$A$6:$U$336,2,0),0) -> 0 | F7: =IFERROR(VLOOKUP(A7,'Gruber Tabelle'!$A$6:$U$336,5,0),0) -> 0 | G7: =IFERROR(VLOOKUP(A7,'Gruber Tabelle'!$A$6:$U$336,7,0),0) -> 0 | H7: =IFERROR(VLOOKUP(A7,'Gruber Tabelle'!$A$6:$U$336,12,0),0) -> 0 | I7: =IFERROR(VLOOKUP(A7,'Gruber Tabelle'!$A$6:$U$336,13,0),0) -> 0 | J7: =IFERROR(VLOOKUP(A7,'Gruber Tabelle'!$A$6:$U$336,14,0),0) -> 0 | K7: =IFERROR(VLOOKUP(A7,'Gruber Tabelle'!$A$6:$U$336,16,0),0) -> 0 | L7: =IFERROR(VLOOKUP(A7,'Gruber Tabelle'!$A$6:$U$336,17,0),0) -> 0 | M7: =IFERROR(VLOOKUP(A7,'Gruber Tabelle'!$A$6:$U$336,18,0),0) -> 0 | N7: =IFERROR(VLOOKUP(A7,'Gruber Tabelle'!$A$6:$U$336,19,0),0) -> 0 | O7: =IFERROR(VLOOKUP(A7,'Gruber Tabelle'!$A$6:$U$336,20,0),0) -> 0 | P7: =IFERROR(VLOOKUP(A7,'Gruber Tabelle'!$A$6:$U$336,21,0),0) -> 0
B8: =IFERROR(VLOOKUP(A8,'Gruber Tabelle'!$A$6:$U$336,2,0),0) -> 0 | F8: =IFERROR(VLOOKUP(A8,'Gruber Tabelle'!$A$6:$U$336,5,0),0) -> 0 | G8: =IFERROR(VLOOKUP(A8,'Gruber Tabelle'!$A$6:$U$336,7,0),0) -> 0 | H8: =IFERROR(VLOOKUP(A8,'Gruber Tabelle'!$A$6:$U$336,12,0),0) -> 0 | I8: =IFERROR(VLOOKUP(A8,'Gruber Tabelle'!$A$6:$U$336,13,0),0) -> 0 | J8: =IFERROR(VLOOKUP(A8,'Gruber Tabelle'!$A$6:$U$336,14,0),0) -> 0 | K8: =IFERROR(VLOOKUP(A8,'Gruber Tabelle'!$A$6:$U$336,16,0),0) -> 0 | L8: =IFERROR(VLOOKUP(A8,'Gruber Tabelle'!$A$6:$U$336,17,0),0) -> 0 | M8: =IFERROR(VLOOKUP(A8,'Gruber Tabelle'!$A$6:$U$336,18,0),0) -> 0 | N8: =IFERROR(VLOOKUP(A8,'Gruber Tabelle'!$A$6:$U$336,19,0),0) -> 0 | O8: =IFERROR(VLOOKUP(A8,'Gruber Tabelle'!$A$6:$U$336,20,0),0) -> 0 | P8: =IFERROR(VLOOKUP(A8,'Gruber Tabelle'!$A$6:$U$336,21,0),0) -> 0
B9: =IFERROR(VLOOKUP(A9,'Gruber Tabelle'!$A$6:$U$336,2,0),0) -> 0 | F9: =IFERROR(VLOOKUP(A9,'Gruber Tabelle'!$A$6:$U$336,5,0),0) -> 0 | G9: =IFERROR(VLOOKUP(A9,'Gruber Tabelle'!$A$6:$U$336,7,0),0) -> 0 | H9: =IFERROR(VLOOKUP(A9,'Gruber Tabelle'!$A$6:$U$336,12,0),0) -> 0 | I9: =IFERROR(VLOOKUP(A9,'Gruber Tabelle'!$A$6:$U$336,13,0),0) -> 0 | J9: =IFERROR(VLOOKUP(A9,'Gruber Tabelle'!$A$6:$U$336,14,0),0) -> 0 | K9: =IFERROR(VLOOKUP(A9,'Gruber Tabelle'!$A$6:$U$336,16,0),0) -> 0 | L9: =IFERROR(VLOOKUP(A9,'Gruber Tabelle'!$A$6:$U$336,17,0),0) -> 0 | M9: =IFERROR(VLOOKUP(A9,'Gruber Tabelle'!$A$6:$U$336,18,0),0) -> 0 | N9: =IFERROR(VLOOKUP(A9,'Gruber Tabelle'!$A$6:$U$336,19,0),0) -> 0 | O9: =IFERROR(VLOOKUP(A9,'Gruber Tabelle'!$A$6:$U$336,20,0),0) -> 0 | P9: =IFERROR(VLOOKUP(A9,'Gruber Tabelle'!$A$6:$U$336,21,0),0) -> 0
B10: =IFERROR(VLOOKUP(A10,'Gruber Tabelle'!$A$6:$U$336,2,0),0) -> 0 | F10: =IFERROR(VLOOKUP(A10,'Gruber Tabelle'!$A$6:$U$336,5,0),0) -> 0 | G10: =IFERROR(VLOOKUP(A10,'Gruber Tabelle'!$A$6:$U$336,7,0),0) -> 0 | H10: =IFERROR(VLOOKUP(A10,'Gruber Tabelle'!$A$6:$U$336,12,0),0) -> 0 | I10: =IFERROR(VLOOKUP(A10,'Gruber Tabelle'!$A$6:$U$336,13,0),0) -> 0 | J10: =IFERROR(VLOOKUP(A10,'Gruber Tabelle'!$A$6:$U$336,14,0),0) -> 0 | K10: =IFERROR(VLOOKUP(A10,'Gruber Tabelle'!$A$6:$U$336,16,0),0) -> 0 | L10: =IFERROR(VLOOKUP(A10,'Gruber Tabelle'!$A$6:$U$336,17,0),0) -> 0 | M10: =IFERROR(VLOOKUP(A10,'Gruber Tabelle'!$A$6:$U$336,18,0),0) -> 0 | N10: =IFERROR(VLOOKUP(A10,'Gruber Tabelle'!$A$6:$U$336,19,0),0) -> 0 | O10: =IFERROR(VLOOKUP(A10,'Gruber Tabelle'!$A$6:$U$336,20,0),0) -> 0 | P10: =IFERROR(VLOOKUP(A10,'Gruber Tabelle'!$A$6:$U$336,21,0),0) -> 0
B11: =IFERROR(VLOOKUP(A11,'Gruber Tabelle'!$A$6:$U$336,2,0),0) -> 0 | F11: =IFERROR(VLOOKUP(A11,'Gruber Tabelle'!$A$6:$U$336,5,0),0) -> 0 | G11: =IFERROR(VLOOKUP(A11,'Gruber Tabelle'!$A$6:$U$336,7,0),0) -> 0 | H11: =IFERROR(VLOOKUP(A11,'Gruber Tabelle'!$A$6:$U$336,12,0),0) -> 0 | I11: =IFERROR(VLOOKUP(A11,'Gruber Tabelle'!$A$6:$U$336,13,0),0) -> 0 | J11: =IFERROR(VLOOKUP(A11,'Gruber Tabelle'!$A$6:$U$336,14,0),0) -> 0 | K11: =IFERROR(VLOOKUP(A11,'Gruber Tabelle'!$A$6:$U$336,16,0),0) -> 0 | L11: =IFERROR(VLOOKUP(A11,'Gruber Tabelle'!$A$6:$U$336,17,0),0) -> 0 | M11: =IFERROR(VLOOKUP(A11,'Gruber Tabelle'!$A$6:$U$336,18,0),0) -> 0 | N11: =IFERROR(VLOOKUP(A11,'Gruber Tabelle'!$A$6:$U$336,19,0),0) -> 0 | O11: =IFERROR(VLOOKUP(A11,'Gruber Tabelle'!$A$6:$U$336,20,0),0) -> 0 | P11: =IFERROR(VLOOKUP(A11,'Gruber Tabelle'!$A$6:$U$336,21,0),0) -> 0
B12: =IFERROR(VLOOKUP(A12,'Gruber Tabelle'!$A$6:$U$336,2,0),0) -> 0 | F12: =IFERROR(VLOOKUP(A12,'Gruber Tabelle'!$A$6:$U$336,5,0),0) -> 0 | G12: =IFERROR(VLOOKUP(A12,'Gruber Tabelle'!$A$6:$U$336,7,0),0) -> 0 | H12: =IFERROR(VLOOKUP(A12,'Gruber Tabelle'!$A$6:$U$336,12,0),0) -> 0 | I12: =IFERROR(VLOOKUP(A12,'Gruber Tabelle'!$A$6:$U$336,13,0),0) -> 0 | J12: =IFERROR(VLOOKUP(A12,'Gruber Tabelle'!$A$6:$U$336,14,0),0) -> 0 | K12: =IFERROR(VLOOKUP(A12,'Gruber Tabelle'!$A$6:$U$336,16,0),0) -> 0 | L12: =IFERROR(VLOOKUP(A12,'Gruber Tabelle'!$A$6:$U$336,17,0),0) -> 0 | M12: =IFERROR(VLOOKUP(A12,'Gruber Tabelle'!$A$6:$U$336,18,0),0) -> 0 | N12: =IFERROR(VLOOKUP(A12,'Gruber Tabelle'!$A$6:$U$336,19,0),0) -> 0 | O12: =IFERROR(VLOOKUP(A12,'Gruber Tabelle'!$A$6:$U$336,20,0),0) -> 0 | P12: =IFERROR(VLOOKUP(A12,'Gruber Tabelle'!$A$6:$U$336,21,0),0) -> 0
B13: =IFERROR(VLOOKUP(A13,'Gruber Tabelle'!$A$6:$U$336,2,0),0) -> 0 | F13: =IFERROR(VLOOKUP(A13,'Gruber Tabelle'!$A$6:$U$336,5,0),0) -> 0 | G13: =IFERROR(VLOOKUP(A13,'Gruber Tabelle'!$A$6:$U$336,7,0),0) -> 0 | H13: =IFERROR(VLOOKUP(A13,'Gruber Tabelle'!$A$6:$U$336,12,0),0) -> 0 | I13: =IFERROR(VLOOKUP(A13,'Gruber Tabelle'!$A$6:$U$336,13,0),0) -> 0 | J13: =IFERROR(VLOOKUP(A13,'Gruber Tabelle'!$A$6:$U$336,14,0),0) -> 0 | K13: =IFERROR(VLOOKUP(A13,'Gruber Tabelle'!$A$6:$U$336,16,0),0) -> 0 | L13: =IFERROR(VLOOKUP(A13,'Gruber Tabelle'!$A$6:$U$336,17,0),0) -> 0 | M13: =IFERROR(VLOOKUP(A13,'Gruber Tabelle'!$A$6:$U$336,18,0),0) -> 0 | N13: =IFERROR(VLOOKUP(A13,'Gruber Tabelle'!$A$6:$U$336,19,0),0) -> 0 | O13: =IFERROR(VLOOKUP(A13,'Gruber Tabelle'!$A$6:$U$336,20,0),0) -> 0 | P13: =IFERROR(VLOOKUP(A13,'Gruber Tabelle'!$A$6:$U$336,21,0),0) -> 0
A14: Nr | B14: Futterart | C14: Mischungs- Anteil in % | D14: TM % | E14: FM kg | F14: aNDFom g | G14: XP g | H14: ME Mj | I14: XS+XZ | J14: bXS | K14: Ca | L14: P | M14: Mg | N14: Na | O14: K | P14: Preis
A15: =A4 -> 0 | B15: =IFERROR(VLOOKUP(A15,'Gruber Tabelle'!$A$6:$U$336,2,0),0) -> 0 | D15: =IFERROR(VLOOKUP(A4,'Gruber Tabelle'!$A$6:$U$336,3,0),0)/1000 -> 0 | E15: =IF(D15>0,(1/D15*C15)," ") ->  | F15: =IF(F4>0,F4*C15," ") ->  | G15: =IF(G4>0,G4*C15," ") ->  | H15: =IF(H4>0,H4*C15," ") ->  | I15: =IF(I4>0,I4*C15," ") ->  | J15: =IF(J4>0,J4*C15," ") ->  | K15: =IF(K4>0,K4*C15," ") ->  | L15: =IF(L4>0,L4*C15," ") ->  | M15: =IF(M4>0,M4*C15," ") ->  | N15: =IF(N4>0,N4*C15," ") ->  | O15: =IF(O4>0,O4*C15," ") ->  | P15: =IF(C15>0,P4*E15/100,0) -> 0
A16: 0 | B16: =IFERROR(VLOOKUP(A16,'Gruber Tabelle'!$A$6:$U$336,2,0),0) -> 0 | D16: =IFERROR(VLOOKUP(A5,'Gruber Tabelle'!$A$6:$U$336,3,0),0)/1000 -> 0 | P16: 0
A17: 0 | B17: =IFERROR(VLOOKUP(A17,'Gruber Tabelle'!$A$6:$U$336,2,0),0) -> 0 | D17: =IFERROR(VLOOKUP(A6,'Gruber Tabelle'!$A$6:$U$336,3,0),0)/1000 -> 0 | P17: 0
A18: 0 | B18: =IFERROR(VLOOKUP(A18,'Gruber Tabelle'!$A$6:$U$336,2,0),0) -> 0 | D18: =IFERROR(VLOOKUP(A7,'Gruber Tabelle'!$A$6:$U$336,3,0),0)/1000 -> 0 | P18: 0
A19: 0 | B19: =IFERROR(VLOOKUP(A19,'Gruber Tabelle'!$A$6:$U$336,2,0),0) -> 0 | D19: =IFERROR(VLOOKUP(A8,'Gruber Tabelle'!$A$6:$U$336,3,0),0)/1000 -> 0 | P19: 0
A20: 0 | B20: =IFERROR(VLOOKUP(A20,'Gruber Tabelle'!$A$6:$U$336,2,0),0) -> 0 | D20: =IFERROR(VLOOKUP(A9,'Gruber Tabelle'!$A$6:$U$336,3,0),0)/1000 -> 0 | P20: 0
A21: 0 | B21: =IFERROR(VLOOKUP(A21,'Gruber Tabelle'!$A$6:$U$336,2,0),0) -> 0 | D21: =IFERROR(VLOOKUP(A10,'Gruber Tabelle'!$A$6:$U$336,3,0),0)/1000 -> 0 | P21: 0
A22: 0 | B22: =IFERROR(VLOOKUP(A22,'Gruber Tabelle'!$A$6:$U$336,2,0),0) -> 0 | D22: =IFERROR(VLOOKUP(A11,'Gruber Tabelle'!$A$6:$U$336,3,0),0)/1000 -> 0 | P22: 0
A23: 0 | B23: =IFERROR(VLOOKUP(A23,'Gruber Tabelle'!$A$6:$U$336,2,0),0) -> 0 | D23: =IFERROR(VLOOKUP(A12,'Gruber Tabelle'!$A$6:$U$336,3,0),0)/1000 -> 0 | P23: 0
A24: 0 | B24: =IFERROR(VLOOKUP(A24,'Gruber Tabelle'!$A$6:$U$336,2,0),0) -> 0 | D24: =IFERROR(VLOOKUP(A13,'Gruber Tabelle'!$A$6:$U$336,3,0),0)/1000 -> 0 | P24: 0
A25: Summe je kg Trockenmasse ( TM ) | C25: =SUM(C15:C24) -> 0 | D25: =IF(C25=100%,100/E25/100,0) -> 0 | E25: =SUM(E15:E24) -> 0 | F25: 0 | G25: 0 | H25: 0 | I25: 0 | J25: 0 | K25: 0 | L25: 0 | M25: 0 | N25: 0 | O25: 0 | P25: 0
A26: Summe je kg Frischmasse ( FM ) | E26: =SUM(E15:E24)*$D$25 -> 0 | F26: =SUM(F15:F24)*$D$25 -> 0 | G26: 0 | H26: 0 | I26: 0 | J26: 0 | K26: 0 | L26: 0 | M26: 0 | N26: 0 | O26: 0 | P26: 0

Sheet Gruber Tabelle
A1: Mischung 1
C2: www.LfL.bayern.de | H2: Gruber Tabelle zur Fütterung in der Rindermast - Fresser - Mastfärsen - Bullen - Mastkühe - Ochsen
D3: in 1000 g Trockenmasse TM | U3: Preis | V3: Typ
C4: TM | D4: XF | E4: aNDF | F4: ADF | G4: XP | H4: nXP | I4: UDP | J4: RNB | K4: Nel | L4: ME | M4: XS+XZ | N4: bXS | O4: XL | P4: Ca | Q4: P | R4: Mg | S4: Na | T4: K | U4: FM
C5: g | D5: g | E5: om g | F5: om g | G5: g | H5: g | I5: % | J5: g | K5: MJ | L5: MJ | M5: g | N5: g | O5: g | P5: g | Q5: g | R5: g | S5: g | T5: g | U5: € / dt
B6: 7.1 Grünfutter | J6: =(G6-H6)/6.25 -> 0
B7: Wiesengras 1. Schnitt | J7: 0
A8: 1013 | B8: Wiesengr. 1. S. Blattstadium | C8: 175 | D8: 173 | E8: 433 | F8: 209 | G8: 228 | H8: 154 | I8: 10 | J8: 11.84 | K8: 7.12 | L8: 11.57 | M8: 137 | O8: 33 | P8: 6.9 | Q8: 3.8 | R8: 2.4 | S8: 0.9 | T8: 32 | V8: GF
A9: 1014 | B9: Wiesengr. 1. S. Schossen | C9: 180 | D9: 185 | E9: 439 | F9: 222 | G9: 192 | H9: 146 | I9: 10 | J9: 7.36 | K9: 6.86 | L9: 11.21 | M9: 137 | O9: 32 | P9: 6.7 | Q9: 3.6 | R9: 2.4 | S9: 0.8 | T9: 31 | V9: GF
A10: 1015 | B10: Wiesengr. 1. S. Rispensch. | C10: 185 | D10: 204 | E10: 457 | F10: 241 | G10: 167 | H10: 144 | I10: 15 | J10: 3.68 | K10: 6.56 | L10: 10.82 | M10: 137 | O10: 30 | P10: 6.5 | Q10: 3.4 | R10: 2.2 | S10: 0.7 | T10: 30 | V10: GF
A11: 1016 | B11: Wiesengr. 1. S. Beginn Blüte | C11: 190 | D11: 224 | E11: 486 | F11: 260 | G11: 146 | H11: 136 | I11: 15 | J11: 1.6 | K11: 6.28 | L11: 10.45 | M11: 137 | O11: 28 | P11: 6.4 | Q11: 3.3 | R11: 2.1 | S11: 0.5 | T11: 29 | V11: GF
A12: 1017 | B12: Wiesengr. 1. S. Ende Blüte | C12: 200 | D12: 246 | E12: 515 | F12: 281 | G12: 120 | H12: 127 | I12: 15 | J12: -1.12 | K12: 5.94 | L12: 9.98 | M12: 137 | O12: 25 | P12: 6 | Q12: 3.1 | R12: 2 | S12: 0.5 | T12: 28 | V12: GF
A13: 1018 | J13: 0 | V13: GF
B14: Wiesengr. 2. u. folg. Schnitte | J14: 0
A15: 1023 | B15: Wiesengr. 2. S. Blattstadium | C15: 200 | D15: 227 | E15: 488 | F15: 270 | G15: 179 | H15: 140 | I15: 10 | J15: 6.24 | K15: 6.51 | L15: 10.78 | M15: 63 | O15: 40 | P15: 7.6 | Q15: 3.7 | R15: 2.8 | S15: 0.9 | T15: 29 | U15: 0 | V15: GF
A16: 1024 | B16: Wiesengr. 2. S. Schossen | C16: 200 | D16: 233 | E16: 491 | F16: 275 | G16: 159 | H16: 135 | I16: 10 | J16: 3.84 | K16: 6.32 | L16: 10.51 | M16: 63 | O16: 37 | P16: 7.6 | Q16: 3.5 | R16: 2.8 | S16: 0.8 | T16: 28 | U16: 0 | V16: GF
A17: 1025 | B17: Wiesengr. 2. S. Rispensch. | C17: 200 | D17: 241 | E17: 510 | F17: 285 | G17: 144 | H17: 134 | I17: 15 | J17: 1.6 | K17: 6.1 | L17: 10.21 | M17: 63 | O17: 35 | P17: 7.3 | Q17: 3.4 | R17: 2.6 | S17: 0.6 | T17: 27 | U17: 0 | V17: GF
A18: 1026 | B18: Wiesengr. 2. S. Beginn Blüte | C18: 200 | D18: 259 | E18: 537 | F18: 304 | G18: 124 | H18: 127 | I18: 15 | J18: -0.48 | K18: 5.85 | L18: 9.84 | M18: 63 | O18: 31 | P18: 6.9 | Q18: 3.2 | R18: 2.4 | S18: 0.6 | T18: 26 | U18: 0 | V18: GF
A19: 1027 | J19: 0 | V19: GF
B20: Rotklee 1. Schnitt | J20: 0
A21: 1614 | B21: Rotklee 1. S. vor der Knospe | C21: 140 | D21: 200 | E21: 355 | F21: 275 | G21: 261 | H21: 157 | I21: 20 | J21: 16.64 | K21: 5.77 | L21: 9.75 | M21: 80 | O21: 34 | P21: 10 | Q21: 3.7 | R21: 2.5 | S21: 0.5 | T21: 32 | U21: 0 | V21: GF
A22: 1615 | B22: Rotklee 1. S. in der Knospe | C22: 155 | D22: 215 | E22: 385 | F22: 305 | G22: 219 | H22: 144 | I22: 20 | J22: 12 | K22: 5.52 | L22: 9.39 | M22: 80 | O22: 28 | P22: 10 | Q22: 3.7 | R22: 2.5 | S22: 0.5 | T22: 32 | U22: 0 | V22: GF
A23: 1616 | B23: Rotklee 1. S. Mitte der Blüte | C23: 160 | D23: 230 | E23: 425 | F23: 345 | G23: 166 | H23: 128 | I23: 20 | J23: 6.08 | K23: 5.16 | L23: 8.87 | M23: 80 | O23: 24 | P23: 10 | Q23: 3.7 | R23: 2.5 | S23: 0.5 | T23: 32 | U23: 0 | V23: GF
A24: 1617 | J24: 0 | V24: GF
B25: Rotklee 2. u. folg. Schnitte | J25: 0
A26: 1624 | B26: Rotklee 2. S. vor der Knospe | C26: 170 | D26: 210 | E26: 370 | F26: 290 | G26: 235 | H26: 151 | I26: 20 | J26: 13.44 | K26: 5.71 | L26: 9.66 | M26: 60 | O26: 29 | P26: 14 | Q26: 3.9 | R26: 3 | S26: 0.5 | T26: 35 | V26: GF
A27: 1625 | B27: Rotklee 2. S. in der Knospe | C27: 190 | D27: 217 | E27: 410 | F27: 330 | G27: 211 | H27: 140 | I27: 20 | J27: 11.36 | K27: 5.35 | L27: 9.15 | M27: 60 | O27: 27 | P27: 14 | Q27: 3.9 | R27: 3 | S27: 0.5 | T27: 35 | V27: GF
A28: 1626 | B28: Rotklee 2. S. Mitte der Blüte | C28: 210 | D28: 282 | E28: 450 | F28: 370 | G28: 164 | H28: 124 | I28: 20 | J28: 6.4 | K28: 4.9 | L28: 8.5 | M28: 60 | O28: 25 | P28: 14 | Q28: 3.9 | R28: 3 | S28: 0.5 | T28: 35 | V28: GF
A29: 1627 | J29: 0 | V29: GF
B30: Kleegras 1. Schnitt | J30: 0
A31: 1633 | B31: Kleegras 1. S. vor der Knospe | C31: 150 | D31: 215 | E31: 380 | F31: 220 | G31: 200 | H31: 144 | I31: 15 | J31: 8.96 | K31: 6.23 | L31: 10.36 | M31: 80 | O31: 29 | P31: 8.3 | Q31: 3.9 | R31: 2.7 | S31: 0.6 | T31: 35 | V31: GF
A32: 1634 | B32: Kleegras 1. S. in der Knospe | C32: 160 | D32: 225 | E32: 410 | F32: 250 | G32: 180 | H32: 137 | I32: 15 | J32: 6.88 | K32: 5.95 | L32: 9.98 | M32: 80 | O32: 28 | P32: 8.3 | Q32: 3.8 | R32: 2.2 | S32: 0.6 | T32: 33 | V32: GF
A33: 1635 | B33: Kleegras 1. S. Beginn Blüte | C33: 175 | D33: 235 | E33: 440 | F33: 280 | G33: 160 | H33: 129 | I33: 15 | J33: 4.96 | K33: 5.67 | L33: 9.59 | M33: 80 | O33: 27 | P33: 8.3 | Q33: 3.5 | R33: 2.1 | S33: 0.6 | T33: 32 | V33: GF
A34: 1636 | B34: Kleegras 1. S. Ende der Blüte | C34: 200 | D34: 245 | E34: 470 | F34: 310 | G34: 140 | H34: 126 | I34: 20 | J34: 2.24 | K34: 5.4 | L34: 9.2 | M34: 80 | O34: 26 | P34: 7 | Q34: 3.5 | R34: 2 | S34: 0.3 | T34: 30 | V34: GF
B35: Kleegras 2. u. folg. Schnitte | J35: 0
A36: 1644 | B36: Kleegras 2. S. vor der Knospe | C36: 150 | D36: 218 | E36: 430 | F36: 283 | G36: 220 | H36: 140 | I36: 15 | J36: 12.8 | K36: 5.76 | L36: 9.73 | M36: 53 | O36: 29 | P36: 9.4 | Q36: 3.9 | R36: 2.8 | S36: 0.4 | T36: 36 | V36: GF
A37: 1645 | B37: Kleegras 2. S. Knospe | C37: 175 | D37: 248 | E37: 466 | F37: 306 | G37: 180 | H37: 131 | I37: 15 | J37: 7.84 | K37: 5.55 | L37: 9.43 | M37: 61 | O37: 28 | P37: 9.4 | Q37: 3.9 | R37: 2.7 | S37: 0.4 | T37: 32 | V37: GF
A38: 1646 | B38: Kleegras 2. S. Mitte der Blüte | C38: 190 | D38: 271 | E38: 509 | F38: 328 | G38: 150 | H38: 128 | I38: 20 | J38: 3.52 | K38: 5.41 | L38: 9.23 | M38: 73 | O38: 25 | P38: 9.4 | Q38: 3.9 | R38: 2.3 | S38: 0.3 | T38: 35 | V38: GF
A39: 1647 | J39: 0 | V39: GF
A40: 1655 | B40: Jurakleegras 1.Schn.Beg.Blü. | C40: 170 | D40: 245 | E40: 500 | F40: 290 | G40: 185 | H40: 139 | I40: 15 | J40: 7.36 | K40: 6.03 | L40: 10.1 | M40: 50 | O40: 30 | P40: 10 | Q40: 3.7 | R40: 1.9 | S40: 0.8 | T40: 35 | V40: GF
A41: 1656 | J41: =(G41-H41)/6.25 -> 0 | V41: GF
B42: Luzerne 1.Schnitt | J42: 0
A43: 1714 | B43: Luzerne 1. S. Knospe | C43: 150 | D43: 233 | E43: 368 | F43: 310 | G43: 236 | H43: 138 | I43: 15 | J43: 15.68 | K43: 5.49 | L43: 9.36 | M43: 50 | O43: 26 | P43: 16 | Q43: 3.8 | R43: 3.1 | S43: 0.5 | T43: 32 | V43: GF
A44: 1715 | B44: Luzerne 1. S. Beginn Blüte | C44: 180 | D44: 246 | E44: 400 | F44: 320 | G44: 203 | H44: 139 | I44: 20 | J44: 10.24 | K44: 5.4 | L44: 9.22 | M44: 50 | O44: 23 | P44: 14.5 | Q44: 3.5 | R44: 2.8 | S44: 0.5 | T44: 31 | V44: GF
A45: 1716 | B45: Luzerne 1. S. Ende Blüte | C45: 210 | D45: 283 | E45: 465 | F45: 350 | G45: 160 | H45: 131 | I45: 25 | J45: 4.64 | K45: 5.1 | L45: 8.8 | M45: 50 | O45: 22 | P45: 13 | Q45: 3 | R45: 2.5 | S45: 0.5 | T45: 30 | V45: GF
A46: 1717 | J46: 0 | V46: GF
B47: Luzerne 2. u. folg. Schnitte | J47: 0
A48: 1724 | B48: Luzerne 2. S. Knospe | C48: 180 | D48: 223 | E48: 357 | F48: 264 | G48: 244 | H48: 147 | I48: 15 | J48: 15.52 | K48: 5.94 | L48: 9.98 | M48: 55 | O48: 27 | P48: 16 | Q48: 4.1 | R48: 3.2 | S48: 0.5 | T48: 31 | V48: GF
A49: 1725 | B49: Luzerne 2. S. Beginn Blüte | C49: 195 | D49: 280 | E49: 421 | F49: 331 | G49: 208 | H49: 139 | I49: 20 | J49: 11.04 | K49: 5.28 | L49: 9.06 | M49: 55 | O49: 24 | P49: 15 | Q49: 3.7 | R49: 2.8 | S49: 0.5 | T49: 30 | V49: GF
A50: 1726 | B50: Luzerne 2. S. Ende Blüte | C50: 210 | D50: 327 | E50: 473 | F50: 379 | G50: 177 | H50: 125 | I50: 20 | J50: 8.32 | K50: 4.84 | L50: 8.42 | M50: 55 | O50: 22 | P50: 14 | Q50: 3.4 | R50: 2.2 | S50: 0.5 | T50: 29 | V50: GF
A51: 1727 | J51: 0 | V51: GF
B52: Luzernegras 1. Schnitt | J52: 0
A53: 1734 | B53: Luzernegr. 1. S. vor d. Knospe | C53: 160 | D53: 205 | E53: 385 | F53: 238 | G53: 195 | H53: 142 | I53: 15 | J53: 8.48 | K53: 6.13 | L53: 10.22 | M53: 75 | O53: 25 | P53: 10.4 | Q53: 3.9 | R53: 2.2 | S53: 0.6 | T53: 33 | V53: GF
A54: 1735 | B54: Luzernegr. 1. S. Knospe | C54: 170 | D54: 243 | E54: 432 | F54: 288 | G54: 183 | H54: 133 | I54: 15 | J54: 8 | K54: 5.67 | L54: 9.61 | M54: 61 | O54: 25 | P54: 8.9 | Q54: 3.6 | R54: 2.2 | S54: 0.3 | T54: 32 | V54: GF
A55: 1736 | B55: Luzernegr. 1. S. Mitte d. Blüte | C55: 180 | D55: 300 | E55: 503 | F55: 346 | G55: 161 | H55: 121 | I55: 15 | J55: 6.4 | K55: 5.12 | L55: 8.82 | M55: 47 | O55: 24 | P55: 8.7 | Q55: 3.5 | R55: 2.2 | S55: 0.1 | T55: 28 | V55: GF
A56: 1737 | J56: 0 | V56: GF
B57: Luzernegras 2. u. folg. Schnitte | J57: 0
A58: 1744 | B58: Luzernegr. 2. S. vor d. Knospe | C58: 190 | D58: 213 | E58: 381 | F58: 256 | G58: 229 | H58: 145 | I58: 15 | J58: 13.44 | K58: 6.01 | L58: 10.07 | M58: 46 | O58: 29 | P58: 14.5 | Q58: 4.2 | R58: 3.1 | S58: 0.4 | T58: 33 | V58: GF
A59: 1745 | B59: Luzernegr. 2. S. Knospe | C59: 195 | D59: 259 | E59: 431 | F59: 307 | G59: 196 | H59: 132 | I59: 15 | J59: 10.24 | K59: 5.5 | L59: 9.37 | M59: 40 | O59: 27 | P59: 14.5 | Q59: 3.6 | R59: 2.8 | S59: 0.4 | T59: 31 | V59: GF
A60: 1746 | B60: Luzernegr. 2. S. Mitte d. Blüte | C60: 200 | D60: 315 | E60: 485 | F60: 367 | G60: 177 | H60: 121 | I60: 15 | J60: 8.96 | K60: 4.93 | L60: 8.56 | M60: 28 | O60: 24 | P60: 14.5 | Q60: 3.3 | R60: 2.6 | S60: 0.4 | T60: 29 | V60: GF
A61: 1747 | V61: GF
A62: 1665 | B62: Alexandrinerklee Beg. Blüte | C62: 125 | D62: 237 | E62: 485 | F62: 285 | G62: 200 | H62: 149 | I62: 25 | J62: 8 | K62: 5.65 | L62: 9.56 | M62: 80 | O62: 43 | P62: 16 | Q62: 3.9 | R62: 3.2 | S62: 1.3 | T62: 33 | V62: GF
A63: 1685 | B63: Perserklee | C63: 118 | D63: 218 | E63: 455 | F63: 265 | G63: 203 | H63: 143 | I63: 20 | J63: =(G63-H63)/6.25 -> 9.6 | K63: 5.71 | L63: 9.6 | M63: 80 | O63: 24 | P63: 16 | Q63: 3.5 | R63: 2 | S63: 1.4 | T63: 28 | V63: GF
B64: Weidelgras 1. Schnitt | J64: 0
A65: 1814 | B65: Weidelgras 1. S. Schossen | C65: 170 | D65: 190 | E65: 420 | F65: 200 | G65: 171 | H65: 152 | I65: 15 | J65: 3.04 | K65: 7.07 | L65: 11.49 | M65: 180 | O65: 31 | P65: 5.5 | Q65: 3.8 | R65: 1.8 | S65: 0.4 | T65: 37 | V65: GF
A66: 1815 | B66: Weidelgras 1. S. Ährensch. | C66: 180 | D66: 220 | E66: 480 | F66: 260 | G66: 145 | H66: 138 | I66: 15 | J66: 1.12 | K66: 6.43 | L66: 10.62 | M66: 150 | O66: 27 | P66: 5.5 | Q66: 3.3 | R66: 1.8 | S66: 0.4 | T66: 33 | V66: GF
A67: 1816 | B67: Weidelgras 1. S. Beginn Blüte | C67: 190 | D67: 260 | E67: 530 | F67: 310 | G67: 110 | H67: 123 | I67: 15 | J67: -2.08 | K67: 5.77 | L67: 9.71 | M67: 105 | O67: 24 | P67: 5.5 | Q67: 3.2 | R67: 1.8 | S67: 0.4 | T67: 32 | V67: GF
A68: 1817 | J68: 0 | V68: GF
B69: Weidelgras 2. u. folg. Schnitte | J69: 0
A70: 1824 | B70: Weidelgras 2. S. Schossen | C70: 180 | D70: 210 | E70: 447 | F70: 218 | G70: 195 | H70: 157 | I70: 15 | J70: 6.08 | K70: 7.13 | L70: 11.61 | M70: 120 | O70: 43 | P70: 5.5 | Q70: 3.8 | R70: 1.8 | S70: 0.4 | T70: 37 | V70: GF
A71: 1825 | B71: Weidelgras 2. S. Ährensch. | C71: 190 | D71: 229 | E71: 496 | F71: 251 | G71: 175 | H71: 145 | I71: 15 | J71: 4.8 | K71: 6.55 | L71: 10.82 | M71: 90 | O71: 38 | P71: 5.5 | Q71: 3.3 | R71: 1.8 | S71: 0.4 | T71: 33 | V71: GF
A72: 1826 | B72: Weidelgras 2. S. Beginn Blüte | C72: 200 | D72: 261 | E72: 538 | F72: 311 | G72: 160 | H72: 132 | I72: 15 | J72: 4.48 | K72: 5.82 | L72: 9.82 | M72: 60 | O72: 32 | P72: 5.5 | Q72: 3.2 | R72: 1.8 | S72: 0.4 | T72: 32 | V72: GF
A73: 1827 | J73: 0 | V73: GF
A74: 1865 | B74: Landsberger Gemenge | C74: 190 | D74: 202 | E74: 442 | F74: 254 | G74: 190 | H74: 119 | I74: 0 | J74: 11.36 | K74: 5.96 | L74: 9.98 | M74: 105 | O74: 26 | P74: 7.3 | Q74: 3 | R74: 1.7 | S74: 0.5 | T74: 26 | V74: GF
A75: 1866 | B75: 0 | C75: 0 | D75: 0 | E75: 0 | F75: 0 | G75: 0 | H75: 0 | I75: 0 | J75: 0 | K75: 0 | L75: 0 | M75: 0 | O75: 0 | P75: 0 | Q75: 0 | R75: 0 | S75: 0 | T75: 0 | V75: GF
A76: 1125 | B76: Gerste im Ährenschieben | C76: 290 | D76: 235 | E76: 580 | F76: 320 | G76: 108 | H76: 138 | I76: 20 | J76: -4.8 | K76: 6.62 | L76: 10.92 | M76: 90 | N76: 0 | O76: 25 | P76: 4.8 | Q76: 2.6 | R76: 1.5 | S76: 0.3 | T76: 24 | V76: GF
B77: Grünhafer / Grünroggen | J77: 0
A78: 1145 | B78: Grünhafer im Rispensch. | C78: 290 | D78: 285 | E78: 530 | F78: 340 | G78: 111 | H78: 133 | I78: 15 | J78: -3.52 | K78: 6.38 | L78: 10.6 | M78: 104 | O78: 32 | P78: 5.7 | Q78: 3.4 | R78: 2.2 | S78: 0.7 | T78: 27 | V78: GF
A79: 1165 | B79: Grünroggen | C79: 260 | D79: 300 | E79: 520 | F79: 330 | G79: 115 | H79: 133 | I79: 15 | J79: -2.88 | K79: 6.38 | L79: 10.6 | M79: 93 | N79: 0 | O79: 32 | P79: 4.3 | Q79: 3.7 | R79: 1.6 | S79: 0.3 | T79: 30 | V79: GF
A80: 1166 | B80: 0 | C80: 0 | D80: 0 | E80: 0 | F80: 0 | G80: 0 | H80: 0 | I80: 0 | J80: 0 | K80: 0 | L80: 0 | M80: 0 | O80: 0 | P80: 0 | Q80: 0 | R80: 0 | S80: 0 | T80: 0 | V80: GF
A81: 1305 | B81: Ackerbohnen Ganzpflanze | C81: 200 | D81: 330 | E81: 506 | F81: 386 | G81: 150 | H81: 121 | I81: 15 | J81: =(G81-H81)/6.25 -> 4.64 | K81: 5.22 | L81: 8.99 | M81: 47 | O81: 20 | P81: 15.5 | Q81: 3.5 | R81: 3.3 | S81: 2 | T81: 23 | V81: GF
A82: 1306 | B82: Sojabohnen Ganzpflanze | C82: 300 | D82: 274 | E82: 453 | F82: 349 | G82: 186 | H82: 127 | I82: 15 | J82: 9.44 | K82: 5.28 | L82: 9.05 | M82: 44 | O82: 22 | P82: 15.8 | Q82: 3.9 | R82: 4.3 | S82: 0.4 | T82: 27 | V82: GF
B83: Hülsenfruchtgemenge | J83: 0
A84: 1315 | B84: Hülsenfruchtg. getreidebetont | C84: 200 | D84: 265 | E84: 607 | F84: 330 | G84: 120 | H84: 122 | I84: 15 | J84: -0.32 | K84: 5.58 | L84: 9.5 | M84: 101 | O84: 22 | P84: 7 | Q84: 4 | R84: 1.8 | S84: 0.4 | T84: 30 | V84: GF
A85: 1335 | B85: Hülsenfruchtg. leguminosenb. | C85: 180 | D85: 269 | E85: 571 | F85: 342 | G85: 169 | H85: 137 | I85: 15 | J85: =(G85-H85)/6.25 -> 5.12 | K85: 6.07 | L85: 10.18 | M85: 52 | O85: 28 | P85: 7.7 | Q85: 4.8 | R85: 2 | S85: 0.3 | T85: 29 | V85: GF
A86: 1317 | J86: 0 | V86: GF
A87: 1355 | B87: Hülsenfr.-Sonnenbl.gem. | C87: 240 | D87: 398 | E87: 575 | F87: 461 | G87: 130 | H87: 119 | I87: 15 | J87: 1.76 | K87: 5.33 | L87: 9.12 | M87: 59 | O87: 22 | P87: 12 | Q87: 3 | R87: 2.2 | S87: 0.3 | T87: 28 | V87: GF
A88: 1455 | B88: Sonnenblumen Beg. Blüte | C88: 190 | D88: 220 | E88: 430 | F88: 290 | G88: 120 | H88: 121 | I88: 15 | J88: -0.16 | K88: 5.52 | L88: 9.35 | M88: 110 | O88: 50 | P88: 14 | Q88: 4.4 | R88: 2.3 | S88: 0 | T88: 30 | V88: GF
A89: 1424 | B89: Raps jung, blattreich | C89: 120 | D89: 134 | E89: 367 | F89: 209 | G89: 180 | H89: 152 | I89: 15 | J89: 4.48 | K89: 7.05 | L89: 11.38 | M89: 120 | O89: 39 | P89: 17 | Q89: 4.5 | R89: 2.6 | S89: 1.3 | T89: 32 | V89: GF
A90: 1425 | B90: Raps alt, stängelreich | C90: 180 | D90: 215 | E90: 435 | F90: 283 | G90: 150 | H90: 124 | I90: 15 | J90: 4.16 | K90: 5.48 | L90: 9.25 | M90: 180 | O90: 24 | P90: 19 | Q90: 5 | R90: 2.6 | S90: 1.4 | T90: 32 | V90: GF
A91: 1435 | B91: Perko | C91: 100 | D91: 127 | E91: 320 | F91: 190 | G91: 216 | H91: 145 | I91: 15 | J91: 11.36 | K91: 6.27 | L91: 10.23 | M91: 110 | O91: 38 | P91: 13 | Q91: 6 | R91: 1.2 | S91: 1.1 | T91: 30 | V91: GF
A92: 1436 | J92: 0 | V92: GF
A93: 1444 | B93: Rübsen jung, blattreich | C93: 110 | D93: 107 | E93: 290 | F93: 170 | G93: 180 | H93: 148 | I93: 15 | J93: 5.12 | K93: 6.84 | L93: 11.02 | M93: 90 | O93: 42 | P93: 16 | Q93: 3.6 | R93: 2.4 | S93: 0.9 | T93: 30 | V93: GF
A94: 1445 | B94: Rübsen alt, stengelreich | C94: 120 | D94: 146 | E94: 350 | F94: 205 | G94: 189 | H94: 146 | I94: 15 | J94: 6.88 | K94: 6.62 | L94: 10.74 | M94: 70 | O94: 37 | P94: 16 | Q94: 4.6 | R94: 2.7 | S94: 1.4 | T94: 30 | V94: GF
A95: 1465 | B95: Senf vor der Blüte | C95: 140 | D95: 210 | E95: 430 | F95: 250 | G95: 215 | H95: 138 | I95: 15 | J95: 12.32 | K95: 5.74 | L95: 9.62 | M95: 110 | O95: 26 | P95: 15.5 | Q95: 4 | R95: 3.4 | S95: 0 | T95: 25 | V95: GF
A96: 1505 | B96: Zuckerrübenblatt | C96: 160 | D96: 109 | E96: 295 | F96: 175 | G96: 160 | H96: 139 | I96: 15 | J96: 3.36 | K96: 6.44 | L96: 10.46 | M96: 220 | O96: 21 | P96: 12.4 | Q96: 2.5 | R96: 4.8 | S96: 9.5 | T96: 35 | V96: GF
A97: 1555 | B97: Futterrübenblatt | C97: 120 | D97: 114 | E97: 300 | F97: 180 | G97: 138 | H97: 126 | I97: 15 | J97: 1.92 | K97: 5.86 | L97: 9.63 | M97: 100 | O97: 22 | P97: 20 | Q97: 2.5 | R97: 6.1 | S97: 6.1 | T97: 45 | V97: GF
A98: 1885 | B98: Sudangras/Zuckerhirse grün | C98: 200 | D98: 280 | E98: 600 | F98: 350 | G98: 105 | H98: 116 | I98: 15 | J98: -1.76 | K98: 5.36 | L98: 9.13 | M98: 60 | O98: 27 | P98: 5 | Q98: 2 | R98: 4 | S98: 0.8 | T98: 25 | V98: GF
B99: Grünmais | J99: 0
A100: 1203 | B100: Grünmais Kolbenbildung | C100: 200 | D100: 248 | E100: 501 | F100: 284 | G100: 82 | H100: 124 | I100: 25 | J100: -6.72 | K100: 5.98 | L100: 10.05 | M100: 226 | N100: 23 | O100: 17 | P100: 3 | Q100: 2.2 | R100: 1.7 | S100: 0.2 | T100: 12 | V100: GF
A101: 1204 | B101: Grünmais Milchreife | C101: 225 | D101: 230 | E101: 475 | F101: 266 | G101: 76 | H101: 125 | I101: 25 | J101: -7.84 | K101: 6.17 | L101: 10.31 | M101: 257 | N101: 32 | O101: 20 | P101: 2.9 | Q101: 2.2 | R101: 1.7 | S101: 0.2 | T101: 12 | V101: GF
A102: 1205 | B102: Grünmais Teigreife | C102: 240 | D102: 210 | E102: 430 | F102: 245 | G102: 74 | H102: 128 | I102: 25 | J102: -8.64 | K102: 6.4 | L102: 10.62 | M102: 303 | N102: 47 | O102: 24 | P102: 2.8 | Q102: 2.2 | R102: 1.7 | S102: 0.2 | T102: 12 | V102: GF
A103: 1206 | B103: 0 | C103: 0 | D103: 0 | E103: 0 | F103: 0 | G103: 0 | H103: 0 | I103: 0 | J103: 0 | K103: 0 | L103: 0 | M103: 0 | N103: 0 | O103: 0 | P103: 0 | Q103: 0 | R103: 0 | S103: 0 | T103: 0 | V103: GF
B104: 7.2 Silagen | J104: =(G104-H104)/6.25 -> 0
B105: Grassilage angewelkt 1. Schnitt | J105: 0
A106: 2013 | B106: Grassil. 1. S. Beg. Schossen | C106: 350 | D106: 227 | E106: 488 | F106: 270 | G106: 179 | H106: 145 | I106: 15 | J106: 5.44 | K106: 6.51 | L106: 10.78 | M106: 63 | O106: 40 | P106: 6.8 | Q106: 3.7 | R106: 2.4 | S106: 0.9 | T106: 31 | V106: GF
A107: 2014 | B107: Grassil. 1. S. Beg. Rispensch. | C107: 350 | D107: 233 | E107: 491 | F107: 275 | G107: 159 | H107: 139 | I107: 15 | J107: 3.2 | K107: 6.32 | L107: 10.51 | M107: 63 | O107: 37 | P107: 6.7 | Q107: 3.5 | R107: 2.3 | S107: 0.7 | T107: 30 | V107: GF
A108: 2015 | B108: Grassil. 1. S. Rispenspreizen | C108: 350 | D108: 241 | E108: 510 | F108: 285 | G108: 144 | H108: 134 | I108: 15 | J108: 1.6 | K108: 6.1 | L108: 10.21 | M108: 63 | O108: 35 | P108: 6.5 | Q108: 3.4 | R108: 2.2 | S108: 0.6 | T108: 29 | V108: GF
A109: 2016 | B109: Grassil. 1. S. Mitte der Blüte | C109: 350 | D109: 259 | E109: 537 | F109: 304 | G109: 124 | H109: 127 | I109: 15 | J109: -0.48 | K109: 5.85 | L109: 9.84 | M109: 63 | O109: 31 | P109: 6.1 | Q109: 3.2 | R109: 2 | S109: 0.5 | T109: 28 | V109: GF
A110: 2017 | J110: 0 | V110: GF
A111: 2018 | J111: 0 | V111: GF
B112: Grassilage angew. 2. u. f. Schnitte | J112: 0
A113: 2024 | B113: Grassil. 2. S. Beg. Schossen | C113: 350 | D113: 255 | E113: 495 | F113: 270 | G113: 169 | H113: 139 | I113: 15 | J113: =(G113-H113)/6.25 -> 4.8 | K113: 6.19 | L113: 10.34 | M113: 50 | O113: 40 | P113: 7.6 | Q113: 3.6 | R113: 2.7 | S113: 0.9 | T113: 29 | V113: GF
A114: 2025 | B114: Grassil. 2. S. Beg. Rispensch. | C114: 350 | D114: 275 | E114: 510 | F114: 285 | G114: 148 | H114: 131 | I114: 15 | J114: 2.72 | K114: 5.9 | L114: 9.93 | M114: 50 | O114: 37 | P114: 7.4 | Q114: 3.5 | R114: 2.6 | S114: 0.8 | T114: 27 | V114: GF
A115: 2026 | B115: Grassil. 2. S. Rispenspreizen | C115: 350 | D115: 297 | E115: 535 | F115: 305 | G115: 128 | H115: 124 | I115: 15 | J115: 0.64 | K115: 5.63 | L115: 9.54 | M115: 50 | O115: 33 | P115: 7 | Q115: 3.3 | R115: 2.5 | S115: 0.6 | T115: 26 | V115: GF
A116: 2027 | J116: 0 | V116: GF
B117: Kleegrassilage 1. Schnitt | J117: 0
A118: 2634 | B118: KlGr.-Sil. 1. S. Beginn Knospe | C118: 330 | D118: 221 | E118: 401 | F118: 270 | G118: 184 | H118: 136 | I118: 15 | J118: 7.68 | K118: 5.83 | L118: 9.86 | M118: 50 | O118: 41 | P118: 8.1 | Q118: 3.7 | R118: 2.6 | S118: 0.6 | T118: 34 | V118: GF
A119: 2635 | B119: KlGr.-Sil. 1. S. Knospenöffnen | C119: 330 | D119: 231 | E119: 422 | F119: 283 | G119: 161 | H119: 129 | I119: 15 | J119: 5.12 | K119: 5.65 | L119: 9.58 | M119: 50 | N119: 0 | O119: 37 | P119: 8.1 | Q119: 3.6 | R119: 2.5 | S119: 0.6 | T119: 31 | V119: GF
A120: 2636 | B120: KlGr.-Sil. 1. S. Mitte der Blüte | C120: 330 | D120: 243 | E120: 449 | F120: 295 | G120: 143 | H120: 128 | I120: 20 | J120: 2.4 | K120: 5.48 | L120: 9.34 | M120: 50 | O120: 35 | P120: 8.1 | Q120: 3 | R120: 2 | S120: 1 | T120: 31 | V120: GF
A121: 2637 | J121: =(G121-H121)/6.25 -> 0 | V121: GF
B122: Kleegrassilage 2.u.folg. Schnitt | J122: 0
A123: 2644 | B123: KlGr.-Sil. 2. S. vor der Knospe | C123: 340 | D123: 240 | E123: 422 | F123: 298 | G123: 178 | H123: 131 | I123: 15 | J123: 7.52 | K123: 5.58 | L123: 9.49 | M123: 42 | O123: 37 | P123: 10.7 | Q123: 3.6 | R123: 2.7 | S123: 0.6 | T123: 32 | V123: GF
A124: 2645 | B124: KlGr.-Sil. 2. S. in der Knospe | C124: 340 | D124: 256 | E124: 457 | F124: 316 | G124: 155 | H124: 124 | I124: 15 | J124: 4.96 | K124: 5.39 | L124: 9.21 | M124: 44 | O124: 35 | P124: 9.4 | Q124: 3.5 | R124: 2.6 | S124: 0.6 | T124: 31 | V124: GF
A125: 2646 | B125: KlGr.-Sil. 2. S. Beg. der Blüte | C125: 340 | D125: 273 | E125: 483 | F125: 327 | G125: 130 | H125: 118 | I125: 15 | J125: 1.92 | K125: 5.22 | L125: 8.96 | M125: 50 | O125: 32 | P125: 8.9 | Q125: 3.3 | R125: 2.4 | S125: 0.6 | T125: 28 | V125: GF
A126: 2647 | J126: 0 | V126: GF
B127: Luzernesilage | J127: 0
A128: 2714 | B128: Luz-Sil. 1. S. in der Knospe | C128: 350 | D128: 235 | E128: 374 | F128: 319 | G128: 190 | H128: 129 | I128: 15 | J128: 9.76 | K128: 5.32 | L128: 9.11 | M128: 40 | O128: 32 | P128: 16 | Q128: 3.5 | R128: 2.9 | S128: 0.5 | T128: 31 | V128: GF
A129: 2715 | B129: Luz-Sil. 1. S. Beginn der Blüte | C129: 350 | D129: 253 | E129: 406 | F129: 330 | G129: 175 | H129: 130 | I129: 20 | J129: 7.2 | K129: 5.17 | L129: 8.89 | M129: 40 | O129: 29 | P129: 14.5 | Q129: 3.3 | R129: 2.7 | S129: 0.5 | T129: 30 | V129: GF
A130: 2716 | B130: Luz-Sil. 1. S. Ende der Blüte | C130: 350 | D130: 270 | E130: 456 | F130: 344 | G130: 150 | H130: 127 | I130: 25 | J130: 3.68 | K130: 4.98 | L130: 8.61 | M130: 40 | O130: 28 | P130: 13 | Q130: 3.2 | R130: 2.5 | S130: 0.5 | T130: 29 | V130: GF
A131: 2725 | B131: ab 2. Schnitt | C131: 350 | D131: 280 | E131: 420 | F131: 352 | G131: 176 | H131: 128 | I131: 20 | J131: 7.68 | K131: 5.05 | L131: 8.72 | M131: 45 | O131: 29 | P131: 14.7 | Q131: 3.2 | R131: 2.5 | S131: 0.5 | T131: 29 | V131: GF
B132: Luzernegrassilage | J132: 0
A133: 2734 | B133: Luz.Gr.-Sil. 1. S. Beg. Knospe | C133: 350 | D133: 233 | E133: 408 | F133: 302 | G133: 186 | H133: 131 | I133: 15 | J133: 8.8 | K133: 5.48 | L133: 9.34 | M133: 48 | O133: 35 | P133: 13 | Q133: 3.4 | R133: 2.6 | S133: 0.5 | T133: 31 | V133: GF
A134: 2735 | B134: Luz Gr.-Sil. 1. S. Knospenöff. | C134: 350 | D134: 261 | E134: 454 | F134: 329 | G134: 162 | H134: 122 | I134: 15 | J134: 6.4 | K134: 5.19 | L134: 8.92 | M134: 44 | O134: 31 | P134: 12 | Q134: 3.2 | R134: 2.3 | S134: 0.4 | T134: 29 | V134: GF
A135: 2736 | B135: Luz Gr.-Sil. 1. S. in d. Blüte | C135: 350 | D135: 279 | E135: 484 | F135: 344 | G135: 138 | H135: 116 | I135: 15 | J135: 3.52 | K135: 5.05 | L135: 8.72 | M135: 42 | O135: 29 | P135: 10 | Q135: 2.9 | R135: 2.3 | S135: 0.4 | T135: 27 | V135: GF
A136: 2745 | B136: ab 2. Schnitt | C136: 350 | D136: 251 | E136: 447 | F136: 334 | G136: 172 | H136: 123 | I136: 15 | J136: 7.84 | K136: 5.16 | L136: 8.88 | M136: 47 | O136: 33 | P136: 12.3 | Q136: 3.2 | R136: 2.7 | S136: 0.6 | T136: 28 | V136: GF
B137: Weidelgrassilage | J137: 0
A138: 2814 | B138: Weidelgrassil. i. Schossen | C138: 350 | D138: 196 | E138: 384 | F138: 223 | G138: 170 | H138: 149 | I138: 15 | J138: 3.36 | K138: 6.91 | L138: 11.27 | M138: 102 | O138: 38 | P138: 5.8 | Q138: 3.8 | R138: 1.8 | S138: 0.5 | T138: 37 | V138: GF
A139: 2815 | B139: Weidelgrassil. im Ährensch. | C139: 350 | D139: 227 | E139: 431 | F139: 262 | G139: 150 | H139: 138 | I139: 15 | J139: 1.92 | K139: 6.33 | L139: 10.49 | M139: 67 | O139: 36 | P139: 5.8 | Q139: 3.3 | R139: 1.8 | S139: 0.5 | T139: 34 | V139: GF
A140: 2816 | B140: Weidelgrassil. in d. Blüte | C140: 350 | D140: 259 | E140: 482 | F140: 304 | G140: 125 | H140: 124 | I140: 15 | J140: 0.16 | K140: 5.68 | L140: 9.59 | M140: 41 | O140: 34 | P140: 5.8 | Q140: 3.2 | R140: 1.8 | S140: 0.5 | T140: 33 | V140: GF
A141: 2817 | J141: 0 | V141: GF
A142: 2865 | B142: Landsb. Gemenge | C142: 320 | D142: 234 | E142: 427 | F142: 278 | G142: 143 | H142: 130 | I142: 15 | J142: 2.08 | K142: 5.9 | L142: 9.9 | M142: 44 | O142: 34 | P142: 6.2 | Q142: 3.9 | R142: 1.9 | S142: 0.4 | T142: 33 | V142: GF
A143: 2866 | B143: 0 | C143: 0 | D143: 0 | E143: 0 | F143: 0 | G143: 0 | H143: 0 | I143: 0 | J143: 0 | K143: 0 | L143: 0 | M143: 0 | N143: 0 | O143: 0 | P143: 0 | Q143: 0 | R143: 0 | S143: 0 | T143: 0 | V143: GF
A144: 2424 | B144: Rapssilage jung, blattreich | C144: 170 | D144: 150 | E144: 283 | F144: 239 | G144: 165 | H144: 144 | I144: 15 | J144: 3 | K144: 6.69 | L144: 10.84 | M144: 13 | O144: 41 | P144: 18 | Q144: 3.5 | R144: 2.7 | S144: 0.4 | T144: 25 | V144: GF
A145: 2425 | B145: Rapssilage alt stängelreich | C145: 200 | D145: 225 | E145: 373 | F145: 284 | G145: 150 | H145: 123 | I145: 15 | J145: =(G145-H145)/6.25 -> 4.32 | K145: 5.44 | L145: 9.14 | M145: 13 | O145: 37 | P145: 18 | Q145: 3.5 | R145: 2.7 | S145: 0.4 | T145: 25 | V145: GF
A146: 2445 | B146: Rübsensilage | C146: 170 | D146: 226 | E146: 334 | F146: 318 | G146: 114 | H146: 143 | I146: 15 | J146: -4.64 | K146: 7.11 | L146: 11.47 | M146: 73 | O146: 30 | P146: 16 | Q146: 4.6 | R146: 2.7 | S146: 1.4 | T146: 30 | V146: GF
A147: 2446 | J147: 0 | V147: GF
B148: Grünhafersilage | J148: 0
A149: 2144 | B149: Grünhafersil. Rispenschieben | C149: 325 | D149: 260 | E149: 485 | F149: 302 | G149: 118 | H149: 133 | I149: 15 | J149: -2.4 | K149: 6.37 | L149: 10.57 | M149: 51 | O149: 36 | P149: 5.7 | Q149: 3.4 | R149: 2.2 | S149: 0.7 | T149: 27 | V149: GF
A150: 2145 | B150: Grünhafersil. Mitte d. Blüte | C150: 325 | D150: 286 | E150: 529 | F150: 338 | G150: 105 | H150: 124 | I150: 15 | J150: -3.04 | K150: 5.9 | L150: 9.93 | M150: 45 | O150: 32 | P150: 5.7 | Q150: 3.4 | R150: 2.2 | S150: 0.7 | T150: 27 | V150: GF
A151: 2146 | B151: Grünhafersil. abgeblüht | C151: 325 | D151: 313 | E151: 583 | F151: 370 | G151: 101 | H151: 118 | I151: 20 | J151: -2.72 | K151: 5.39 | L151: 9.22 | M151: 36 | O151: 29 | P151: 5.7 | Q151: 3.4 | R151: 2.2 | S151: 0.7 | T151: 27 | V151: GF
B152: Grünroggensilage | J152: 0
A153: 2164 | B153: Grünroggensil. Ährensch. | C153: 270 | D153: 259 | E153: 481 | F153: 295 | G153: 130 | H153: 138 | I153: 15 | J153: -1.28 | K153: 6.54 | L153: 10.79 | M153: 41 | O153: 35 | P153: 4.3 | Q153: 3.7 | R153: 1.6 | S153: 0.3 | T153: 30 | V153: GF
A154: 2165 | B154: Grünroggensil. Mitte d. Blüte | C154: 270 | D154: 305 | E154: 541 | F154: 337 | G154: 110 | H154: 130 | I154: 15 | J154: -3.2 | K154: 6.23 | L154: 10.39 | M154: 30 | O154: 33 | P154: 4.3 | Q154: 3.7 | R154: 1.6 | S154: 0.3 | T154: 30 | V154: GF
A155: 2166 | B155: Grünroggensil. abgeblüht | C155: 270 | D155: 335 | E155: 596 | F155: 378 | G155: 98 | H155: 123 | I155: 15 | J155: -4 | K155: 5.89 | L155: 9.93 | M155: 23 | O155: 30 | P155: 4.3 | Q155: 3.7 | R155: 1.6 | S155: 0.3 | T155: 30 | V155: GF
A156: 2167 | J156: 0 | V156: GF
B157: GPS Gerste/Weizen | J157: 0
A158: 2134 | B158: GPS WG/WW körnerarm | C158: 340 | D158: 300 | E158: 630 | F158: 347 | G158: 91 | H158: 110 | I158: 15 | J158: -3.04 | K158: 5.09 | L158: 8.78 | M158: 210 | N158: 15 | O158: 22 | P158: 4.5 | Q158: 2.6 | R158: 1.3 | S158: 0.3 | T158: 18 | V158: GF
A159: 2135 | B159: GPS WG/WW mittl. Körnerant. | C159: 360 | D159: 270 | E159: 590 | F159: 315 | G159: 87 | H159: 114 | I159: 15 | J159: -4.32 | K159: 5.41 | L159: 9.26 | M159: 270 | N159: 22 | O159: 23 | P159: 4.3 | Q159: 2.6 | R159: 1.3 | S159: 0.3 | T159: 18 | V159: GF
A160: 2136 | B160: GPS WG/WW körnerreich | C160: 380 | D160: 240 | E160: 550 | F160: 294 | G160: 81 | H160: 118 | I160: 15 | J160: -5.92 | K160: 5.68 | L160: 9.63 | M160: 330 | N160: 29 | O160: 24 | P160: 4.1 | Q160: 2.6 | R160: 1.3 | S160: 0.3 | T160: 18 | V160: GF
A161: 2305 | B161: GPS Sojabohnen | C161: 310 | D161: 272 | E161: 373 | F161: 315 | G161: 163 | H161: 125 | I161: 15 | J161: 6.08 | K161: 5.37 | L161: 9.15 | M161: 32 | N161: 0 | O161: 28 | P161: 15.8 | Q161: 3.9 | R161: 4.3 | S161: 0.4 | T161: 27 | V161: GF
A162: 2885 | B162: Zuckerhirse/Sudangras siliert | C162: 300 | D162: 315 | E162: 614 | F162: 380 | G162: 73 | H162: 105 | I162: 0 | J162: =(G162-H162)/6.25 -> -5.12 | K162: 5.09 | L162: 8.79 | M162: 20 | O162: 20 | P162: 5.2 | Q162: 2.3 | R162: 2 | S162: 0.2 | T162: 16 | V162: GF
B163: Maissilage | J163: 0
A164: 2206 | B164: Maissilage mittl. Kornant. | C164: 350 | D164: 200 | E164: 398 | F164: 234 | G164: 76 | H164: 132 | I164: 25 | J164: -8.96 | K164: 6.64 | L164: 10.98 | M164: 359 | N164: 49 | O164: 30 | P164: 2.7 | Q164: 2.3 | R164: 1.5 | S164: 0.2 | T164: 12 | V164: GF
A165: 2216 | B165: Maissilage körnerarm | C165: 350 | D165: 221 | E165: 430 | F165: 253 | G165: 77 | H165: 129 | I165: 25 | J165: -8.32 | K165: 6.44 | L165: 10.7 | M165: 315 | N165: 42 | O165: 27 | P165: 2.8 | Q165: 2.2 | R165: 1.6 | S165: 0.2 | T165: 13 | V165: GF
A166: 2226 | B166: Maissilage körnerreich | C166: 350 | D166: 183 | E166: 369 | F166: 216 | G166: 75 | H166: 134 | I166: 25 | J166: =(G166-H166)/6.25 -> -9.44 | K166: 6.82 | L166: 11.21 | M166: 402 | N166: 55 | O166: 31 | P166: 2.7 | Q166: 2.2 | R166: 1.5 | S166: 0.2 | T166: 11 | V166: GF
A167: 2227 | J167: 0 | V167: GF
A168: 2245 | B168: Maissilage Pflückhäcksel 2+4 | C168: 400 | D168: 180 | E168: 365 | F168: 215 | G168: 80 | H168: 136 | I168: 25 | J168: -8.96 | K168: 6.85 | L168: 11.26 | M168: 396 | N168: 54 | O168: 33 | P168: 2.7 | Q168: 2.4 | R168: 1.4 | S168: 0.2 | T168: 10 | V168: GF
A169: 2246 | B169: Maissilage Pflückhäcksel 2+2 | C169: 410 | D169: 151 | E169: 313 | F169: 175 | G169: 78 | H169: 140 | I169: 25 | J169: -9.92 | K169: 7.23 | L169: 11.76 | M169: 477 | N169: 66 | O169: 34 | P169: 2.6 | Q169: 2.4 | R169: 1.3 | S169: 0.2 | T169: 9 | V169: GF
A170: 2235 | B170: Lieschkolbensilage LKS | C170: 480 | D170: 140 | E170: 321 | F170: 215 | G170: 95 | H170: 149 | I170: 35 | J170: -8.64 | K170: 7.44 | L170: 12.05 | M170: 455 | N170: 68 | O170: 36 | P170: 1 | Q170: 2.5 | R170: 1.2 | S170: 0.3 | T170: 6 | V170: GF
A171: 5206 | B171: Maiskornsilage Schrot | C171: 650 | D171: 25 | E171: 83 | F171: 42 | G171: 87 | H171: 162 | I171: 40 | J171: -12 | K171: 8.71 | L171: 13.67 | M171: 738 | N171: 182 | O171: 43 | P171: 0.5 | Q171: 3.2 | R171: 1.4 | S171: 0.2 | T171: 4 | V171: GF
A172: 5225 | B172: CCM Kornspind.gem. | C172: 600 | D172: 53 | E172: 210 | F172: 125 | G172: 100 | H172: 158 | I172: 35 | J172: -9.28 | K172: 7.99 | L172: 12.78 | M172: 631 | N172: 156 | O172: 43 | P172: 0.4 | Q172: 3.5 | R172: 1.3 | S172: 0.2 | T172: 4 | V172: GF
A173: 2505 | B173: Zuckerrübenblattsilage | C173: 180 | D173: 145 | E173: 350 | F173: 205 | G173: 150 | H173: 130 | I173: 15 | J173: 3.2 | K173: 5.98 | L173: 9.83 | M173: 16 | O173: 32 | P173: 10 | Q173: 2.4 | R173: 4 | S173: 7 | T173: 27 | V173: GF
A174: 2555 | B174: Futterrübenblattsilage | C174: 180 | D174: 145 | E174: 335 | F174: 195 | G174: 145 | H174: 123 | I174: 15 | J174: 3.52 | K174: 5.57 | L174: 9.21 | M174: 20 | O174: 29 | P174: 20 | Q174: 2.4 | R174: 5 | S174: 3.5 | T174: 33 | V174: GF
B175: 7.3 Heu, Cobs, Grünmehl, Stroh | J175: 0
B176: Wiesenheu 1.Schnitt | J176: 0
A177: 3014 | B177: Wiesenheu 1. S. Rispensch. | C177: 860 | D177: 260 | E177: 537 | F177: 304 | G177: 127 | H177: 130 | I177: 20 | J177: -0.48 | K177: 5.86 | L177: 9.87 | M177: 120 | O177: 25 | P177: 6.1 | Q177: 3 | R177: 2 | S177: 0.4 | T177: 27 | V177: GF
A178: 3015 | B178: Wiesenheu 1. S. Rispenspr. | C178: 860 | D178: 297 | E178: 594 | F178: 346 | G178: 97 | H178: 114 | I178: 20 | J178: -2.72 | K178: 5.16 | L178: 8.88 | M178: 118 | O178: 18 | P178: 5.8 | Q178: 2.7 | R178: 2 | S178: 0.4 | T178: 23 | V178: GF
A179: 3016 | B179: Wiesenheu 1. S. Mitte d. Blüte | C179: 860 | D179: 331 | E179: 624 | F179: 380 | G179: 82 | H179: 105 | I179: 25 | J179: -3.68 | K179: 4.69 | L179: 8.2 | M179: 116 | O179: 16 | P179: 5.5 | Q179: 2.2 | R179: 2 | S179: 0.4 | T179: 21 | V179: GF
A180: 3017 | B180: Wiesenheu 1. S. abgeblüht | C180: 860 | D180: 345 | E180: 636 | F180: 391 | G180: 64 | H180: 97 | I180: 25 | J180: -5.28 | K180: 4.5 | L180: 7.92 | M180: 114 | O180: 14 | P180: 5.2 | Q180: 2.2 | R180: 2 | S180: 0.4 | T180: 18 | V180: GF
A181: 3018 | J181: 0 | V181: GF
B182: Wiesenheu 2. u. folg. Schnitte | J182: 0
A183: 3024 | B183: Wiesenheu 2. S. Schossen | C183: 860 | D183: 230 | E183: 485 | F183: 272 | G183: 145 | H183: 138 | I183: 20 | J183: 1.12 | K183: 6.12 | L183: 10.22 | M183: 120 | O183: 30 | P183: 8 | Q183: 3.4 | R183: 2.9 | S183: 0.5 | T183: 26 | V183: GF
A184: 3025 | B184: Wiesenheu 2. S. Rispenspr. | C184: 860 | D184: 256 | E184: 527 | F184: 304 | G184: 131 | H184: 129 | I184: 20 | J184: 0.32 | K184: 5.72 | L184: 9.66 | M184: 106 | O184: 26 | P184: 7.8 | Q184: 3.3 | R184: 2.8 | S184: 0.5 | T184: 25 | V184: GF
A185: 3026 | B185: Wiesenheu 2. S. Mitte d. Blüte | C185: 860 | D185: 288 | E185: 581 | F185: 340 | G185: 113 | H185: 119 | I185: 20 | J185: -0.96 | K185: 5.29 | L185: 9.06 | M185: 96 | O185: 22 | P185: 6.4 | Q185: 3.1 | R185: 2.4 | S185: 0.5 | T185: 23 | V185: GF
B186: Heu U-Dachtr. 1. Schnitt | J186: 0
A187: 3034 | B187: Heu U-D.Tr. 1. S. Rispensch. | C187: 870 | D187: 236 | E187: 498 | F187: 281 | G187: 142 | H187: 139 | I187: 20 | J187: 0.48 | K187: 6.2 | L187: 10.34 | M187: 142 | O187: 27 | P187: 6.6 | Q187: 3.2 | R187: 2.1 | S187: 0.5 | T187: 28 | V187: GF
A188: 3035 | B188: Heu U-D.Tr. 1. S. Rispenspr. | C188: 870 | D188: 263 | E188: 541 | F188: 307 | G188: 111 | H188: 127 | I188: 20 | J188: -2.56 | K188: 5.87 | L188: 9.88 | M188: 140 | O188: 24 | P188: 6.2 | Q188: 2.9 | R188: 2.1 | S188: 0.5 | T188: 24 | V188: GF
A189: 3036 | B189: Heu U-D.Tr. 1. S. Mitte d. Bl. | C189: 870 | D189: 298 | E189: 582 | F189: 350 | G189: 91 | H189: 116 | I189: 25 | J189: -4 | K189: 5.29 | L189: 9.07 | M189: 138 | O189: 19 | P189: 5.8 | Q189: 2.4 | R189: 2.1 | S189: 5 | T189: 23 | V189: GF
A190: 3037 | J190: 0 | V190: GF
B191: Heu U-Dachtr. 2.u.f. Schnitte | J191: 0
A192: 3044 | B192: Heu U-D.Tr. 2. S. Schossen | C192: 870 | D192: 222 | E192: 461 | F192: 260 | G192: 172 | H192: 145 | I192: 20 | J192: 4.32 | K192: 6.25 | L192: 10.4 | M192: 112 | O192: 28 | P192: 8.4 | Q192: 3.8 | R192: 3 | S192: 0.6 | T192: 29 | V192: GF
A193: 3045 | B193: Heu U-D.Tr. 2. S. Rispensch. | C193: 870 | D193: 249 | E193: 514 | F193: 287 | G193: 148 | H193: 136 | I193: 20 | J193: 1.92 | K193: 5.92 | L193: 9.94 | M193: 110 | O193: 27 | P193: 7.4 | Q193: 3.7 | R193: 2.8 | S193: 0.6 | T193: 29 | V193: GF
A194: 3046 | B194: Heu U-D.Tr. 2. S. Mitte d. Bl. | C194: 870 | D194: 272 | E194: 553 | F194: 312 | G194: 137 | H194: 129 | I194: 20 | J194: 1.28 | K194: 5.61 | L194: 9.52 | M194: 108 | O194: 25 | P194: 7.4 | Q194: 3.6 | R194: 2.6 | S194: 0.6 | T194: 26 | V194: GF
B195: Luzerneheu 1. Schnitt | J195: 0
A196: 3714 | B196: Luz-Heu 1. S. Beginn Blüte | C196: 860 | D196: 278 | E196: 461 | F196: 332 | G196: 174 | H196: 136 | I196: 25 | J196: 6.08 | K196: 5.22 | L196: 8.96 | M196: 65 | O196: 20 | P196: 15 | Q196: 2.8 | R196: 3 | S196: 0.8 | T196: 28 | V196: GF
A197: 3715 | B197: Luz-Heu 1. S. Ende Blüte | C197: 860 | D197: 320 | E197: 515 | F197: 379 | G197: 166 | H197: 135 | I197: 30 | J197: =(G197-H197)/6.25 -> 4.96 | K197: 4.84 | L197: 8.43 | M197: 40 | O197: 19 | P197: 15 | Q197: 2.8 | R197: 2.7 | S197: 0.6 | T197: 27 | V197: GF
A198: 3716 | B198: Luz-Heu 1. S. abgeblüht | C198: 860 | D198: 347 | E198: 536 | F198: 406 | G198: 148 | H198: 125 | I198: 30 | J198: 3.68 | K198: 4.57 | L198: 8.03 | M198: 36 | O198: 15 | P198: 15 | Q198: 2.8 | R198: 2.3 | S198: 0.5 | T198: 26 | V198: GF
A199: 3717 | J199: 0 | V199: GF
B200: Luzerneheu 2. u. folg. Schnitte | J200: 0
... 136 more rows

Sheet Mengenberechnung
B2: Basis – Ration für : | G2: 0 | H2: Tiere
B3: Kenn Nr. | C3: Futtermittel | F3: kg.
B4: =Ration!A15 -> 0 | C4: =Ration!B15 -> 0 | F4: =IF(Ration!F15>0,$G$2*Ration!E4,0) -> 0 | G4: Gesamtgewicht Grundfutter und Kraftfutter pro Mischung in kg:
B5: =Ration!A16 -> 0 | C5: =Ration!B16 -> 0 | F5: =IF(Ration!F16>0,$G$2*Ration!E5,0) -> 0
B6: =Ration!A17 -> 0 | C6: =Ration!B17 -> 0 | F6: =IF(Ration!F17>0,$G$2*Ration!E6,0) -> 0
B7: =Ration!A18 -> 0 | C7: =Ration!B18 -> 0 | F7: =IF(Ration!F18>0,$G$2*Ration!E7,0) -> 0
B8: =Ration!A19 -> 0 | C8: =Ration!B19 -> 0 | F8: =IF(Ration!F19>0,$G$2*Ration!E8,0) -> 0
B9: =Ration!A20 -> 0 | C9: =Ration!B20 -> 0 | F9: =IF(Ration!F20>0,$G$2*Ration!E9,0) -> 0
B10: =Ration!A21 -> 0 | C10: =Ration!B21 -> 0 | F10: =IF(Ration!F21>0,$G$2*Ration!E10,0) -> 0
B11: =Ration!A22 -> 0 | C11: =Ration!B22 -> 0 | F11: =IF(Ration!F22>0,$G$2*Ration!E11,0) -> 0 | G11: =SUM(F4:F15) -> 0
B12: =Ration!A23 -> 0 | C12: =Ration!B23 -> 0 | F12: =IF(Ration!F23>0,$G$2*Ration!E12,0) -> 0
B13: =Ration!A24 -> 0 | C13: =Ration!B24 -> 0 | F13: =IF(Ration!F24>0,$G$2*Ration!E13,0) -> 0
B14: KF 1 | C14: Mischung 1 | F14: =Ration!E26*$G$2 -> 0
B15: KF 2 | C15: Mischung 2 | F15: =Ration!E27*$G$2 -> 0
B16: Kraftfutter – Mischung 1 Mischergröße: | G16: 0 | H16: kg
B17: Kenn Nr. | C17: Futtermittel | F17: kg.
B18: ='Mischung 1'!A15 -> 0 | C18: ='Mischung 1'!B15 -> 0 | F18: =$G$16*'Mischung 1'!C15 -> 0 | G18: Tiere gesamt: | H18: 0
B19: ='Mischung 1'!A16 -> 0 | C19: ='Mischung 1'!B16 -> 0 | F19: =$G$16*'Mischung 1'!C16 -> 0 | G19: kg je Tier/Tag: | H19: 0
B20: ='Mischung 1'!A17 -> 0 | C20: ='Mischung 1'!B17 -> 0 | F20: =$G$16*'Mischung 1'!C17 -> 0 | G20: Die Mischung reicht für Tage :
B21: ='Mischung 1'!A18 -> 0 | C21: ='Mischung 1'!B18 -> 0 | F21: =$G$16*'Mischung 1'!C18 -> 0
B22: ='Mischung 1'!A19 -> 0 | C22: ='Mischung 1'!B19 -> 0 | F22: =$G$16*'Mischung 1'!C19 -> 0
B23: ='Mischung 1'!A20 -> 0 | C23: ='Mischung 1'!B20 -> 0 | F23: =$G$16*'Mischung 1'!C20 -> 0
B24: ='Mischung 1'!A21 -> 0 | C24: ='Mischung 1'!B21 -> 0 | F24: =$G$16*'Mischung 1'!C21 -> 0 | G24: =IF(H19>0,G16/(H18*H19)," ") -> 
B25: ='Mischung 1'!A22 -> 0 | C25: ='Mischung 1'!B22 -> 0 | F25: =$G$16*'Mischung 1'!C22 -> 0
B26: ='Mischung 1'!A23 -> 0 | C26: ='Mischung 1'!B23 -> 0 | F26: =$G$16*'Mischung 1'!C23 -> 0
B27: ='Mischung 1'!A24 -> 0 | C27: ='Mischung 1'!B24 -> 0 | F27: =$G$16*'Mischung 1'!C24 -> 0
B28: Kraftfutter – Mischung 2 Mischergröße: | G28: 0 | H28: kg
B29: Kenn Nr. | C29: Futtermittel | F29: kg.
B30: ='Mischung 2'!A15 -> 0 | C30: ='Mischung 2'!B15 -> 0 | F30: =$G$28*'Mischung 2'!C15 -> 0 | G30: Tiere gesamt: | H30: 0
B31: ='Mischung 2'!A16 -> 0 | C31: ='Mischung 2'!B16 -> 0 | F31: =$G$28*'Mischung 2'!C16 -> 0 | G31: kg je Tier/Tag: | H31: 0
B32: ='Mischung 2'!A17 -> 0 | C32: ='Mischung 2'!B17 -> 0 | F32: =$G$28*'Mischung 2'!C17 -> 0 | G32: Die Mischung reicht für Tage :
B33: ='Mischung 2'!A18 -> 0 | C33: ='Mischung 2'!B18 -> 0 | F33: =$G$28*'Mischung 2'!C18 -> 0
B34: ='Mischung 2'!A19 -> 0 | C34: ='Mischung 2'!B19 -> 0 | F34: =$G$28*'Mischung 2'!C19 -> 0
B35: ='Mischung 2'!A20 -> 0 | C35: ='Mischung 2'!B20 -> 0 | F35: =$G$28*'Mischung 2'!C20 -> 0
B36: ='Mischung 2'!A21 -> 0 | C36: ='Mischung 2'!B21 -> 0 | F36: =$G$28*'Mischung 2'!C21 -> 0 | G36: =IF(H31>0,G28/(H30*H31)," ") -> 
B37: ='Mischung 2'!A22 -> 0 | C37: ='Mischung 2'!B22 -> 0 | F37: =$G$28*'Mischung 2'!C22 -> 0
B38: ='Mischung 2'!A23 -> 0 | C38: ='Mischung 2'!B23 -> 0 | F38: =$G$28*'Mischung 2'!C23 -> 0
B39: ='Mischung 2'!A24 -> 0 | C39: ='Mischung 2'!B24 -> 0 | F39: =$G$28*'Mischung 2'!C24 -> 0

Sheet Ausdruck
A2: =Einstellung!B5 -> Tierhaltungsschule | C2: =Einstellung!D5 -> Triesdorf | G2: =Ration!A2 -> Bitte Sollwerte auswählen !!!
A4: FM kg | B4: Futterart | D4: TM kg | E4: aNDFom | F4: XP g | G4: ME MJ | H4: Ca g | I4: P g | J4: Mg g | K4: Na g | L4: Kosten
A5: =Ration!E4 -> 0 | B5: =Ration!B15 -> 0 | D5: =IF(Ration!F15="TM o. FM?"," ",Ration!F15) -> 0 | E5: =Ration!G15 -> 0 | F5: =Ration!H15 -> 0 | G5: =Ration!I15 -> 0 | H5: =Ration!L15 -> 0 | I5: =Ration!M15 -> 0 | J5: =Ration!N15 -> 0 | K5: =Ration!P15 -> 0 | L5: =Ration!Q15 -> 0
A6: =Ration!E5 -> 0 | B6: =Ration!B16 -> 0 | D6: =IF(Ration!F16="TM o. FM?"," ",Ration!F16) -> 0 | E6: =Ration!G16 -> 0 | F6: =Ration!H16 -> 0 | G6: =Ration!I16 -> 0 | H6: =Ration!L16 -> 0 | I6: =Ration!M16 -> 0 | J6: =Ration!N16 -> 0 | K6: =Ration!P16 -> 0 | L6: =Ration!Q16 -> 0
A7: =Ration!E6 -> 0 | B7: =Ration!B17 -> 0 | D7: =IF(Ration!F17="TM o. FM?"," ",Ration!F17) -> 0 | E7: =Ration!G17 -> 0 | F7: =Ration!H17 -> 0 | G7: =Ration!I17 -> 0 | H7: =Ration!L17 -> 0 | I7: =Ration!M17 -> 0 | J7: =Ration!N17 -> 0 | K7: =Ration!P17 -> 0 | L7: =Ration!Q17 -> 0
A8: =Ration!E7 -> 0 | B8: =Ration!B18 -> 0 | D8: =IF(Ration!F18="TM o. FM?"," ",Ration!F18) -> 0 | E8: =Ration!G18 -> 0 | F8: =Ration!H18 -> 0 | G8: =Ration!I18 -> 0 | H8: =Ration!L18 -> 0 | I8: =Ration!M18 -> 0 | J8: =Ration!N18 -> 0 | K8: =Ration!P18 -> 0 | L8: =Ration!Q18 -> 0
A9: =Ration!E8 -> 0 | B9: =Ration!B19 -> 0 | D9: =IF(Ration!F19="TM o. FM?"," ",Ration!F19) -> 0 | E9: =Ration!G19 -> 0 | F9: =Ration!H19 -> 0 | G9: =Ration!I19 -> 0 | H9: =Ration!L19 -> 0 | I9: =Ration!M19 -> 0 | J9: =Ration!N19 -> 0 | K9: =Ration!P19 -> 0 | L9: =Ration!Q19 -> 0
A10: =Ration!E9 -> 0 | B10: =Ration!B20 -> 0 | D10: =IF(Ration!F20="TM o. FM?"," ",Ration!F20) -> 0 | E10: =Ration!G20 -> 0 | F10: =Ration!H20 -> 0 | G10: =Ration!I20 -> 0 | H10: =Ration!L20 -> 0 | I10: =Ration!M20 -> 0 | J10: =Ration!N20 -> 0 | K10: =Ration!P20 -> 0 | L10: =Ration!Q20 -> 0
A11: =Ration!E10 -> 0 | B11: =Ration!B21 -> 0 | D11: =IF(Ration!F21="TM o. FM?"," ",Ration!F21) -> 0 | E11: =Ration!G21 -> 0 | F11: =Ration!H21 -> 0 | G11: =Ration!I21 -> 0 | H11: =Ration!L21 -> 0 | I11: =Ration!M21 -> 0 | J11: =Ration!N21 -> 0 | K11: =Ration!P21 -> 0 | L11: =Ration!Q21 -> 0
A12: =Ration!E11 -> 0 | B12: =Ration!B22 -> 0 | D12: =IF(Ration!F22="TM o. FM?"," ",Ration!F22) -> 0 | E12: =Ration!G22 -> 0 | F12: =Ration!H22 -> 0 | G12: =Ration!I22 -> 0 | H12: =Ration!L22 -> 0 | I12: =Ration!M22 -> 0 | J12: =Ration!N22 -> 0 | K12: =Ration!P22 -> 0 | L12: =Ration!Q22 -> 0
A13: =Ration!E12 -> 0 | B13: =Ration!B23 -> 0 | D13: =IF(Ration!F23="TM o. FM?"," ",Ration!F23) -> 0 | E13: =Ration!G23 -> 0 | F13: =Ration!H23 -> 0 | G13: =Ration!I23 -> 0 | H13: =Ration!L23 -> 0 | I13: =Ration!M23 -> 0 | J13: =Ration!N23 -> 0 | K13: =Ration!P23 -> 0 | L13: =Ration!Q23 -> 0
A14: =Ration!E13 -> 0 | B14: =Ration!B24 -> 0 | D14: =IF(Ration!F24="TM o. FM?"," ",Ration!F24) -> 0 | E14: =Ration!G24 -> 0 | F14: =Ration!H24 -> 0 | G14: =Ration!I24 -> 0 | H14: =Ration!L24 -> 0 | I14: =Ration!M24 -> 0 | J14: =Ration!N24 -> 0 | K14: =Ration!P24 -> 0 | L14: =Ration!Q24 -> 0
A15: =Ration!E26 -> 0 | B15: Kraftfutter-Mischung 1 | D15: =Ration!D26 -> 0 | E15: =Ration!G26 -> 0 | F15: =Ration!H26 -> 0 | G15: =Ration!I26 -> 0 | H15: =Ration!L26 -> 0 | I15: =Ration!M26 -> 0 | J15: =Ration!N26 -> 0 | K15: =Ration!P26 -> 0 | L15: =Ration!Q26 -> 0
A16: =Ration!E27 -> 0 | B16: Kraftfutter-Mischung 2 | D16: =Ration!D27 -> 0 | E16: =Ration!G27 -> 0 | F16: =Ration!H27 -> 0 | G16: =Ration!I27 -> 0 | H16: =Ration!L27 -> 0 | I16: =Ration!M27 -> 0 | J16: =Ration!N27 -> 0 | K16: =Ration!P27 -> 0 | L16: =Ration!Q27 -> 0
A17: =Ration!E28 -> 0 | B17: Summe Grob- und Kraftfutter | D17: =Ration!D28 -> 0 | E17: =Ration!G28 -> 0 | F17: =Ration!H28 -> 0 | G17: =Ration!I28 -> 0 | H17: =Ration!L28 -> 0 | I17: =Ration!M28 -> 0 | J17: =Ration!N28 -> 0 | K17: =Ration!P28 -> 0 | L17: =Ration!Q28 -> 0
A19: Richtwerte zu Nähr- und Mineralstoffversorgung | D19: =Ration!D29 -> 0 | F19: =Ration!H29 -> 0 | G19: =Ration!I29 -> 0 | H19: =Ration!L29 -> 0 | I19: =Ration!M29 -> 0 | J19: =Ration!N29 -> 0 | K19: =Ration!P29 -> 0
A20: Differenz zu den Richtwerten | D20: =Ration!D30 -> 0 | F20: =Ration!H30 -> 0 | G20: =Ration!I30 -> 0 | H20: =Ration!L30 -> 0 | I20: =Ration!M30 -> 0 | J20: =Ration!N30 -> 0 | K20: =Ration!P30 -> 0
A22: Berechnung - Strukturbewertung d. Ration | C22: aNDFom %: | E22: =Ration!G31 -> 0 | H22: Strukturindex: | J22: =Ration!F31 -> 0
A25: Futtermischung - Beladung Mischwagen
B27: Futterart | C27: kg | F27: Anzahl der Tiere, Rationen : | K27: =Mengenberechnung!G2 -> 0
A28: 1 | B28: =Mengenberechnung!C4 -> 0 | C28: =Mengenberechnung!F4 -> 0
A29: 2 | B29: =Mengenberechnung!C5 -> 0 | C29: =Mengenberechnung!F5 -> 0
A30: 3 | B30: =Mengenberechnung!C6 -> 0 | C30: =Mengenberechnung!F6 -> 0 | F30: Notiz :
A31: 4 | B31: =Mengenberechnung!C7 -> 0 | C31: =Mengenberechnung!F7 -> 0
A32: 5 | B32: =Mengenberechnung!C8 -> 0 | C32: =Mengenberechnung!F8 -> 0
A33: 6 | B33: =Mengenberechnung!C9 -> 0 | C33: =Mengenberechnung!F9 -> 0
A34: 7 | B34: =Mengenberechnung!C10 -> 0 | C34: =Mengenberechnung!F10 -> 0
A35: 8 | B35: =Mengenberechnung!C11 -> 0 | C35: =Mengenberechnung!F11 -> 0
A36: 9 | B36: =Mengenberechnung!C12 -> 0 | C36: =Mengenberechnung!F12 -> 0
A37: 10 | B37: =Mengenberechnung!C13 -> 0 | C37: =Mengenberechnung!F13 -> 0
A38: 11 | B38: =Mengenberechnung!C14 -> Mischung 1 | C38: =Mengenberechnung!F14 -> 0
A39: 12 | B39: =Mengenberechnung!C15 -> Mischung 2 | C39: =Mengenberechnung!F15 -> 0
A40: Gesamtgewicht d. Ladung in kg | C40: =Mengenberechnung!G11 -> 0
A42: Kraftfutter - Mischung 1 | F42: =Einstellung!$B$5 -> Tierhaltungsschule | I42: =Einstellung!$D$5 -> Triesdorf
F43: Betriebsnummer | I43: =Einstellung!$B$8 -> 09 111 111 1111
A45: Anteil | B45: Futterart | D45: XP g | E45: ME MJ | F45: Ca g | G45: P g | H45: Mg g | I45: Na g | J45: Anteil kg in der Mischung
A46: ='Mischung 1'!C15 -> 0 | B46: ='Mischung 1'!B15 -> 0 | D46: ='Mischung 1'!G15 ->  | E46: ='Mischung 1'!H15 ->  | F46: ='Mischung 1'!K15 ->  | G46: ='Mischung 1'!L15 ->  | H46: ='Mischung 1'!M15 ->  | I46: ='Mischung 1'!N15 ->  | J46: =Mengenberechnung!F18 -> 0
A47: ='Mischung 1'!C16 -> 0 | B47: ='Mischung 1'!B16 -> 0 | D47: ='Mischung 1'!G16 ->  | E47: ='Mischung 1'!H16 ->  | F47: ='Mischung 1'!K16 ->  | G47: ='Mischung 1'!L16 ->  | H47: ='Mischung 1'!M16 ->  | I47: ='Mischung 1'!N16 ->  | J47: =Mengenberechnung!F19 -> 0
A48: ='Mischung 1'!C17 -> 0 | B48: ='Mischung 1'!B17 -> 0 | D48: ='Mischung 1'!G17 ->  | E48: ='Mischung 1'!H17 ->  | F48: ='Mischung 1'!K17 ->  | G48: ='Mischung 1'!L17 ->  | H48: ='Mischung 1'!M17 ->  | I48: ='Mischung 1'!N17 ->  | J48: =Mengenberechnung!F20 -> 0
A49: ='Mischung 1'!C18 -> 0 | B49: ='Mischung 1'!B18 -> 0 | D49: ='Mischung 1'!G18 ->  | E49: ='Mischung 1'!H18 ->  | F49: ='Mischung 1'!K18 ->  | G49: ='Mischung 1'!L18 ->  | H49: ='Mischung 1'!M18 ->  | I49: ='Mischung 1'!N18 ->  | J49: =Mengenberechnung!F21 -> 0
A50: ='Mischung 1'!C19 -> 0 | B50: ='Mischung 1'!B19 -> 0 | D50: ='Mischung 1'!G19 ->  | E50: ='Mischung 1'!H19 ->  | F50: ='Mischung 1'!K19 ->  | G50: ='Mischung 1'!L19 ->  | H50: ='Mischung 1'!M19 ->  | I50: ='Mischung 1'!N19 ->  | J50: =Mengenberechnung!F22 -> 0
A51: ='Mischung 1'!C20 -> 0 | B51: ='Mischung 1'!B20 -> 0 | D51: ='Mischung 1'!G20 ->  | E51: ='Mischung 1'!H20 ->  | F51: ='Mischung 1'!K20 ->  | G51: ='Mischung 1'!L20 ->  | H51: ='Mischung 1'!M20 ->  | I51: ='Mischung 1'!N20 ->  | J51: =Mengenberechnung!F23 -> 0
A52: ='Mischung 1'!C21 -> 0 | B52: ='Mischung 1'!B21 -> 0 | D52: ='Mischung 1'!G21 ->  | E52: ='Mischung 1'!H21 ->  | F52: ='Mischung 1'!K21 ->  | G52: ='Mischung 1'!L21 ->  | H52: ='Mischung 1'!M21 ->  | I52: ='Mischung 1'!N21 ->  | J52: =Mengenberechnung!F24 -> 0
A53: ='Mischung 1'!C22 -> 0 | B53: ='Mischung 1'!B22 -> 0 | D53: ='Mischung 1'!G22 ->  | E53: ='Mischung 1'!H22 ->  | F53: ='Mischung 1'!K22 ->  | G53: ='Mischung 1'!L22 ->  | H53: ='Mischung 1'!M22 ->  | I53: ='Mischung 1'!N22 ->  | J53: =Mengenberechnung!F25 -> 0
A54: ='Mischung 1'!C23 -> 0 | B54: ='Mischung 1'!B23 -> 0 | D54: ='Mischung 1'!G23 ->  | E54: ='Mischung 1'!H23 ->  | F54: ='Mischung 1'!K23 ->  | G54: ='Mischung 1'!L23 ->  | H54: ='Mischung 1'!M23 ->  | I54: ='Mischung 1'!N23 ->  | J54: =Mengenberechnung!F26 -> 0
A55: ='Mischung 1'!C24 -> 0 | B55: ='Mischung 1'!B24 -> 0 | D55: ='Mischung 1'!G24 ->  | E55: ='Mischung 1'!H24 ->  | F55: ='Mischung 1'!K24 ->  | G55: ='Mischung 1'!L24 ->  | H55: ='Mischung 1'!M24 ->  | I55: ='Mischung 1'!N24 ->  | J55: =Mengenberechnung!F27 -> 0
B56: Summe je kg FM | D56: ='Mischung 1'!G26 -> 0 | E56: ='Mischung 1'!H26 -> 0 | F56: ='Mischung 1'!K26 -> 0 | G56: ='Mischung 1'!L26 -> 0 | H56: ='Mischung 1'!M26 -> 0 | I56: ='Mischung 1'!N26 -> 0 | J56: =Mengenberechnung!G16 -> 0
A57: ='Mischung 1'!C25 -> 0 | B57: Summe je kg TM | D57: ='Mischung 1'!G25 -> 0 | E57: ='Mischung 1'!H25 -> 0 | F57: ='Mischung 1'!K25 -> 0 | G57: ='Mischung 1'!L25 -> 0 | H57: ='Mischung 1'!M25 -> 0 | I57: ='Mischung 1'!N25 -> 0
A61: Kraftfutter - Mischung 2 | F61: =Einstellung!$B$5 -> Tierhaltungsschule | I61: =Einstellung!$D$5 -> Triesdorf
F62: Betriebsnummer | I62: =Einstellung!$B$8 -> 09 111 111 1111
A64: Anteil | B64: Futterart | D64: XP g | E64: ME MJ | F64: Ca g | G64: P g | H64: Mg g | I64: Na g | J64: Anteil kg in der Mischung
A65: ='Mischung 2'!C15 -> 0 | B65: ='Mischung 2'!B15 -> 0 | D65: ='Mischung 2'!G15 ->  | E65: ='Mischung 2'!H15 ->  | F65: ='Mischung 2'!K15 ->  | G65: ='Mischung 2'!L15 ->  | H65: ='Mischung 2'!M15 ->  | I65: ='Mischung 2'!N15 ->  | J65: =Mengenberechnung!F30 -> 0
A66: ='Mischung 2'!C16 -> 0 | B66: ='Mischung 2'!B16 -> 0 | D66: ='Mischung 2'!G16 ->  | E66: ='Mischung 2'!H16 ->  | F66: ='Mischung 2'!K16 ->  | G66: ='Mischung 2'!L16 ->  | H66: ='Mischung 2'!M16 ->  | I66: ='Mischung 2'!N16 ->  | J66: =Mengenberechnung!F31 -> 0
A67: ='Mischung 2'!C17 -> 0 | B67: ='Mischung 2'!B17 -> 0 | D67: ='Mischung 2'!G17 ->  | E67: ='Mischung 2'!H17 ->  | F67: ='Mischung 2'!K17 ->  | G67: ='Mischung 2'!L17 ->  | H67: ='Mischung 2'!M17 ->  | I67: ='Mischung 2'!N17 ->  | J67: =Mengenberechnung!F32 -> 0
A68: ='Mischung 2'!C18 -> 0 | B68: ='Mischung 2'!B18 -> 0 | D68: ='Mischung 2'!G18 ->  | E68: ='Mischung 2'!H18 ->  | F68: ='Mischung 2'!K18 ->  | G68: ='Mischung 2'!L18 ->  | H68: ='Mischung 2'!M18 ->  | I68: ='Mischung 2'!N18 ->  | J68: =Mengenberechnung!F33 -> 0
A69: ='Mischung 2'!C19 -> 0 | B69: ='Mischung 2'!B19 -> 0 | D69: ='Mischung 2'!G19 ->  | E69: ='Mischung 2'!H19 ->  | F69: ='Mischung 2'!K19 ->  | G69: ='Mischung 2'!L19 ->  | H69: ='Mischung 2'!M19 ->  | I69: ='Mischung 2'!N19 ->  | J69: =Mengenberechnung!F34 -> 0
A70: ='Mischung 2'!C20 -> 0 | B70: ='Mischung 2'!B20 -> 0 | D70: ='Mischung 2'!G20 ->  | E70: ='Mischung 2'!H20 ->  | F70: ='Mischung 2'!K20 ->  | G70: ='Mischung 2'!L20 ->  | H70: ='Mischung 2'!M20 ->  | I70: ='Mischung 2'!N20 ->  | J70: =Mengenberechnung!F35 -> 0
A71: ='Mischung 2'!C21 -> 0 | B71: ='Mischung 2'!B21 -> 0 | D71: ='Mischung 2'!G21 ->  | E71: ='Mischung 2'!H21 ->  | F71: ='Mischung 2'!K21 ->  | G71: ='Mischung 2'!L21 ->  | H71: ='Mischung 2'!M21 ->  | I71: ='Mischung 2'!N21 ->  | J71: =Mengenberechnung!F36 -> 0
A72: ='Mischung 2'!C22 -> 0 | B72: ='Mischung 2'!B22 -> 0 | D72: ='Mischung 2'!G22 ->  | E72: ='Mischung 2'!H22 ->  | F72: ='Mischung 2'!K22 ->  | G72: ='Mischung 2'!L22 ->  | H72: ='Mischung 2'!M22 ->  | I72: ='Mischung 2'!N22 ->  | J72: =Mengenberechnung!F37 -> 0
A73: ='Mischung 2'!C23 -> 0 | B73: ='Mischung 2'!B23 -> 0 | D73: ='Mischung 2'!G23 ->  | E73: ='Mischung 2'!H23 ->  | F73: ='Mischung 2'!K23 ->  | G73: ='Mischung 2'!L23 ->  | H73: ='Mischung 2'!M23 ->  | I73: ='Mischung 2'!N23 ->  | J73: =Mengenberechnung!F38 -> 0
A74: ='Mischung 2'!C24 -> 0 | B74: ='Mischung 2'!B24 -> 0 | D74: ='Mischung 2'!G24 ->  | E74: ='Mischung 2'!H24 ->  | F74: ='Mischung 2'!K24 ->  | G74: ='Mischung 2'!L24 ->  | H74: ='Mischung 2'!M24 ->  | I74: ='Mischung 2'!N24 ->  | J74: =Mengenberechnung!F39 -> 0
B75: Summe je kg FM | D75: ='Mischung 2'!G26 -> 0 | E75: ='Mischung 2'!H26 -> 0 | F75: ='Mischung 2'!K26 -> 0 | G75: ='Mischung 2'!L26 -> 0 | H75: ='Mischung 2'!M26 -> 0 | I75: ='Mischung 2'!N26 -> 0 | J75: =Mengenberechnung!G28 -> 0
A76: ='Mischung 2'!C25 -> 0 | B76: Summe je kg TM | D76: ='Mischung 2'!G25 -> 0 | E76: ='Mischung 2'!H25 -> 0 | F76: ='Mischung 2'!K25 -> 0 | G76: ='Mischung 2'!L25 -> 0 | H76: ='Mischung 2'!M25 -> 0 | I76: ='Mischung 2'!N25 -> 0
